Service Area,Service Area Categorisation,Service Division Categorisation,Responsible Unit,Expenses Types,Detailed Expenses Type,Expense Code,Narrative,Invoice Date,Payment Date,Amount,Capital/Revenue,Supplier Name
Schools Total,School Group 7 � Pupil Capacity 501-1800,MCC Schools,Chepstow School,Employees,Direct Employee Expenses,Agency Staff,,11/10/2023,20/10/2023,656.82,,Teaching Personnel
Schools Total,School Group 7 � Pupil Capacity 501-1800,MCC Schools,Caldicot School,Employees,Direct Employee Expenses,Agency Staff,,24/09/2023,06/10/2023,215.6,,New Directions Education Ltd
Schools Total,School Group 7 � Pupil Capacity 501-1800,MCC Schools,Caldicot School,Employees,Direct Employee Expenses,Agency Staff,,24/09/2023,06/10/2023,215.6,,New Directions Education Ltd
Schools Total,School Group 7 � Pupil Capacity 501-1800,MCC Schools,Caldicot School,Employees,Direct Employee Expenses,Agency Staff,,24/09/2023,06/10/2023,142.02,,New Directions Education Ltd
Schools Total,School Group 7 � Pupil Capacity 501-1800,MCC Schools,Caldicot School,Employees,Direct Employee Expenses,Agency Staff,,04/10/2023,10/10/2023,198.58,,Academics
Schools Total,School Group 7 � Pupil Capacity 501-1800,MCC Schools,Caldicot School,Employees,Direct Employee Expenses,Agency Staff,,24/09/2023,06/10/2023,123.24,,New Directions Education Ltd
Schools Total,School Group 7 � Pupil Capacity 501-1800,MCC Schools,Caldicot School,Employees,Direct Employee Expenses,Agency Staff,,24/09/2023,06/10/2023,123.24,,New Directions Education Ltd
Schools Total,School Group 7 � Pupil Capacity 501-1800,MCC Schools,Caldicot School,Employees,Direct Employee Expenses,Agency Staff,,24/09/2023,06/10/2023,228,,New Directions Education Ltd
Schools Total,School Group 7 � Pupil Capacity 501-1800,MCC Schools,Caldicot School,Employees,Direct Employee Expenses,Agency Staff,,24/09/2023,06/10/2023,228,,New Directions Education Ltd
Schools Total,School Group 7 � Pupil Capacity 501-1800,MCC Schools,Caldicot School,Employees,Direct Employee Expenses,Agency Staff,,24/09/2023,06/10/2023,228,,New Directions Education Ltd
Schools Total,School Group 7 � Pupil Capacity 501-1800,MCC Schools,Caldicot School,Employees,Direct Employee Expenses,Agency Staff,,24/09/2023,06/10/2023,228,,New Directions Education Ltd
Schools Total,School Group 7 � Pupil Capacity 501-1800,MCC Schools,Caldicot School,Employees,Direct Employee Expenses,Agency Staff,,24/09/2023,06/10/2023,118.56,,New Directions Education Ltd
Schools Total,School Group 7 � Pupil Capacity 501-1800,MCC Schools,Caldicot School,Employees,Direct Employee Expenses,Agency Staff,,24/09/2023,06/10/2023,118.56,,New Directions Education Ltd
Schools Total,School Group 7 � Pupil Capacity 501-1800,MCC Schools,Caldicot School,Employees,Direct Employee Expenses,Agency Staff,,24/09/2023,06/10/2023,118.56,,New Directions Education Ltd
Schools Total,School Group 7 � Pupil Capacity 501-1800,MCC Schools,Caldicot School,Employees,Direct Employee Expenses,Agency Staff,,24/09/2023,06/10/2023,118.56,,New Directions Education Ltd
Schools Total,School Group 7 � Pupil Capacity 501-1800,MCC Schools,Caldicot School,Employees,Direct Employee Expenses,Agency Staff,,24/09/2023,06/10/2023,118.56,,New Directions Education Ltd
Schools Total,School Group 7 � Pupil Capacity 501-1800,MCC Schools,Caldicot School,Employees,Direct Employee Expenses,Agency Staff,,24/09/2023,06/10/2023,118.56,,New Directions Education Ltd
Schools Total,School Group 7 � Pupil Capacity 501-1800,MCC Schools,Caldicot School,Employees,Direct Employee Expenses,Agency Staff,,24/09/2023,06/10/2023,118.56,,New Directions Education Ltd
Schools Total,School Group 7 � Pupil Capacity 501-1800,MCC Schools,Caldicot School,Employees,Direct Employee Expenses,Agency Staff,,24/09/2023,06/10/2023,118.56,,New Directions Education Ltd
Schools Total,School Group 7 � Pupil Capacity 501-1800,MCC Schools,Caldicot School,Employees,Direct Employee Expenses,Agency Staff,,24/09/2023,06/10/2023,118.01,,New Directions Education Ltd
Schools Total,School Group 7 � Pupil Capacity 501-1800,MCC Schools,Caldicot School,Employees,Direct Employee Expenses,Agency Staff,,24/09/2023,06/10/2023,118.01,,New Directions Education Ltd
Schools Total,School Group 7 � Pupil Capacity 501-1800,MCC Schools,Caldicot School,Employees,Direct Employee Expenses,Agency Staff,,09/10/2023,12/10/2023,624.51,,Apollo Teaching Services LTD
Schools Total,School Group 7 � Pupil Capacity 501-1800,MCC Schools,Caldicot School,Employees,Direct Employee Expenses,Agency Staff,,09/10/2023,12/10/2023,150.33,,Apollo Teaching Services LTD
Schools Total,School Group 7 � Pupil Capacity 501-1800,MCC Schools,Caldicot School,Employees,Direct Employee Expenses,Agency Staff,,09/10/2023,12/10/2023,750,,Staffroom Education Ltd
Schools Total,School Group 7 � Pupil Capacity 501-1800,MCC Schools,Caldicot School,Employees,Direct Employee Expenses,Agency Staff,,18/10/2023,20/10/2023,7878.72,,Teaching Personnel
Schools Total,School Group 7 � Pupil Capacity 501-1800,MCC Schools,Caldicot School,Employees,Direct Employee Expenses,Agency Staff,,24/09/2023,06/10/2023,215.6,,New Directions Education Ltd
Schools Total,School Group 7 � Pupil Capacity 501-1800,MCC Schools,Caldicot School,Employees,Direct Employee Expenses,Agency Staff,,24/09/2023,06/10/2023,215.6,,New Directions Education Ltd
Schools Total,School Group 7 � Pupil Capacity 501-1800,MCC Schools,Caldicot School,Employees,Direct Employee Expenses,Agency Staff,,24/09/2023,06/10/2023,123.24,,New Directions Education Ltd
Schools Total,School Group 7 � Pupil Capacity 501-1800,MCC Schools,Caldicot School,Employees,Direct Employee Expenses,Agency Staff,,24/09/2023,06/10/2023,123.24,,New Directions Education Ltd
Schools Total,School Group 7 � Pupil Capacity 501-1800,MCC Schools,Caldicot School,Employees,Direct Employee Expenses,Agency Staff,,15/10/2023,20/10/2023,228,,New Directions Education Ltd
Schools Total,School Group 7 � Pupil Capacity 501-1800,MCC Schools,Caldicot School,Employees,Direct Employee Expenses,Agency Staff,,15/10/2023,20/10/2023,228,,New Directions Education Ltd
Schools Total,School Group 7 � Pupil Capacity 501-1800,MCC Schools,Caldicot School,Employees,Direct Employee Expenses,Agency Staff,,15/10/2023,20/10/2023,228,,New Directions Education Ltd
Schools Total,School Group 7 � Pupil Capacity 501-1800,MCC Schools,Caldicot School,Employees,Direct Employee Expenses,Agency Staff,,04/10/2023,12/10/2023,2581,,Suppleo Recruitment Ltd
Schools Total,School Group 7 � Pupil Capacity 501-1800,MCC Schools,Caldicot School,Employees,Direct Employee Expenses,Agency Staff,,09/10/2023,12/10/2023,455.72,,Apollo Teaching Services LTD
Schools Total,School Group 7 � Pupil Capacity 501-1800,MCC Schools,Caldicot School,Employees,Direct Employee Expenses,Agency Staff,,23/10/2023,26/10/2023,1665.36,,Apollo Teaching Services LTD
Schools Total,School Group 7 � Pupil Capacity 501-1800,MCC Schools,Caldicot School,Employees,Direct Employee Expenses,Agency Staff,,23/10/2023,26/10/2023,113.93,,Apollo Teaching Services LTD
Schools Total,School Group 7 � Pupil Capacity 501-1800,MCC Schools,Chepstow School,Employees,Direct Employee Expenses,Agency Staff,,18/10/2023,25/10/2023,656.82,,Teaching Personnel
Schools Total,School Group 7 � Pupil Capacity 501-1800,MCC Schools,Caldicot School,Employees,Direct Employee Expenses,Agency Staff,,18/10/2023,23/10/2023,280,,Academics
Schools Total,School Group 7 � Pupil Capacity 501-1800,MCC Schools,Caldicot School,Employees,Direct Employee Expenses,Agency Staff,,18/10/2023,23/10/2023,223,,Academics
Schools Total,School Group 7 � Pupil Capacity 501-1800,MCC Schools,Caldicot School,Employees,Direct Employee Expenses,Agency Staff,,19/10/2023,23/10/2023,161.01,,Prospero Teaching
Schools Total,School Group 7 � Pupil Capacity 501-1800,MCC Schools,Caldicot School,Employees,Direct Employee Expenses,Agency Staff,,18/10/2023,23/10/2023,2574.97,,Back Office Support Services Ltd (Education Supply Pool)
Schools Total,School Group 7 � Pupil Capacity 501-1800,MCC Schools,Caldicot School,Employees,Direct Employee Expenses,Agency Staff,,01/10/2023,06/10/2023,215.6,,New Directions Education Ltd
Schools Total,School Group 7 � Pupil Capacity 501-1800,MCC Schools,Caldicot School,Employees,Direct Employee Expenses,Agency Staff,,01/10/2023,06/10/2023,123.24,,New Directions Education Ltd
Schools Total,School Group 7 � Pupil Capacity 501-1800,MCC Schools,Caldicot School,Employees,Direct Employee Expenses,Agency Staff,,01/10/2023,06/10/2023,123.24,,New Directions Education Ltd
Schools Total,School Group 7 � Pupil Capacity 501-1800,MCC Schools,Caldicot School,Employees,Direct Employee Expenses,Agency Staff,,01/10/2023,06/10/2023,118.01,,New Directions Education Ltd
Schools Total,School Group 7 � Pupil Capacity 501-1800,MCC Schools,Caldicot School,Employees,Direct Employee Expenses,Agency Staff,,01/10/2023,06/10/2023,142.02,,New Directions Education Ltd
Schools Total,School Group 7 � Pupil Capacity 501-1800,MCC Schools,Caldicot School,Employees,Direct Employee Expenses,Agency Staff,,01/10/2023,06/10/2023,123.24,,New Directions Education Ltd
Schools Total,School Group 7 � Pupil Capacity 501-1800,MCC Schools,Caldicot School,Employees,Direct Employee Expenses,Agency Staff,,01/10/2023,06/10/2023,123.24,,New Directions Education Ltd
Schools Total,School Group 7 � Pupil Capacity 501-1800,MCC Schools,Caldicot School,Employees,Direct Employee Expenses,Agency Staff,,01/10/2023,06/10/2023,118.56,,New Directions Education Ltd
Schools Total,School Group 7 � Pupil Capacity 501-1800,MCC Schools,Caldicot School,Employees,Direct Employee Expenses,Agency Staff,,01/10/2023,06/10/2023,118.56,,New Directions Education Ltd
Schools Total,School Group 7 � Pupil Capacity 501-1800,MCC Schools,Caldicot School,Employees,Direct Employee Expenses,Agency Staff,,01/10/2023,06/10/2023,118.56,,New Directions Education Ltd
Schools Total,School Group 7 � Pupil Capacity 501-1800,MCC Schools,Caldicot School,Employees,Direct Employee Expenses,Agency Staff,,01/10/2023,06/10/2023,118.56,,New Directions Education Ltd
Schools Total,School Group 7 � Pupil Capacity 501-1800,MCC Schools,Caldicot School,Employees,Direct Employee Expenses,Agency Staff,,01/10/2023,06/10/2023,118.56,,New Directions Education Ltd
Schools Total,School Group 7 � Pupil Capacity 501-1800,MCC Schools,Caldicot School,Employees,Direct Employee Expenses,Agency Staff,,01/10/2023,06/10/2023,118.56,,New Directions Education Ltd
Schools Total,School Group 7 � Pupil Capacity 501-1800,MCC Schools,Caldicot School,Employees,Direct Employee Expenses,Agency Staff,,01/10/2023,06/10/2023,118.56,,New Directions Education Ltd
Schools Total,School Group 7 � Pupil Capacity 501-1800,MCC Schools,Caldicot School,Employees,Direct Employee Expenses,Agency Staff,,01/10/2023,06/10/2023,228,,New Directions Education Ltd
Schools Total,School Group 7 � Pupil Capacity 501-1800,MCC Schools,Caldicot School,Employees,Direct Employee Expenses,Agency Staff,,01/10/2023,06/10/2023,228,,New Directions Education Ltd
Schools Total,School Group 7 � Pupil Capacity 501-1800,MCC Schools,Caldicot School,Employees,Direct Employee Expenses,Agency Staff,,01/10/2023,06/10/2023,228,,New Directions Education Ltd
Schools Total,School Group 7 � Pupil Capacity 501-1800,MCC Schools,Caldicot School,Employees,Direct Employee Expenses,Agency Staff,,01/10/2023,06/10/2023,228,,New Directions Education Ltd
Schools Total,School Group 7 � Pupil Capacity 501-1800,MCC Schools,Caldicot School,Employees,Direct Employee Expenses,Agency Staff,,01/10/2023,06/10/2023,215.6,,New Directions Education Ltd
Schools Total,School Group 7 � Pupil Capacity 501-1800,MCC Schools,Caldicot School,Employees,Direct Employee Expenses,Agency Staff,,18/10/2023,25/10/2023,2581,,Suppleo Recruitment Ltd
Schools Total,School Group 7 � Pupil Capacity 501-1800,MCC Schools,Caldicot School,Employees,Direct Employee Expenses,Agency Staff,,25/09/2023,25/10/2023,160.01,,Prospero Teaching
Schools Total,School Group 7 � Pupil Capacity 501-1800,MCC Schools,Caldicot School,Employees,Direct Employee Expenses,Agency Staff,,28/09/2023,25/10/2023,160.01,,Prospero Teaching
"Facilities, Fleet & Decarbonisation",Transport Department,Communities & Place,Transport,Transport,Direct Transport Costs,Diesel,,17/10/2023,30/10/2023,3911.7,,Estuary Oils
"Facilities, Fleet & Decarbonisation",Transport Department,Communities & Place,Transport,Transport,Direct Transport Costs,Diesel,,27/10/2023,01/11/2023,8835,,Estuary Oils
"Facilities, Fleet & Decarbonisation",Transport Department,Communities & Place,Transport,Transport,Direct Transport Costs,Diesel,,27/10/2023,01/11/2023,5000,,Estuary Oils
Schools Total,School Group 7 � Pupil Capacity 501-1800,MCC Schools,Chepstow School,Employees,Direct Employee Expenses,Agency Staff,,18/10/2023,25/10/2023,220.5,,Supply Desk Ltd
Schools Total,School Group 7 � Pupil Capacity 501-1800,MCC Schools,Caldicot School,Employees,Direct Employee Expenses,Agency Staff,,12/10/2023,19/10/2023,132.7,,Prospero Teaching
Schools Total,School Group 7 � Pupil Capacity 501-1800,MCC Schools,Caldicot School,Employees,Direct Employee Expenses,Agency Staff,,16/10/2023,19/10/2023,750,,Staffroom Education Ltd
"Facilities, Fleet & Decarbonisation",Transport Department,Communities & Place,Transport,Transport,Direct Transport Costs,Diesel,,11/10/2023,26/10/2023,8808.1,,Estuary Oils
"Facilities, Fleet & Decarbonisation",Transport Department,Communities & Place,Transport,Transport,Direct Transport Costs,Diesel,,12/10/2023,26/10/2023,1641.38,,Estuary Oils
Schools Total,School Group 7 � Pupil Capacity 501-1800,MCC Schools,Caldicot School,Employees,Direct Employee Expenses,Agency Staff,,25/10/2023,30/10/2023,2574.97,,Back Office Support Services Ltd (Education Supply Pool)
Schools Total,School Group 7 � Pupil Capacity 501-1800,MCC Schools,Caldicot School,Employees,Direct Employee Expenses,Agency Staff,,02/10/2023,05/10/2023,750,,Staffroom Education Ltd
"Facilities, Fleet & Decarbonisation",Transport Department,Communities & Place,Transport,Transport,Direct Transport Costs,Diesel,,04/10/2023,12/10/2023,5239.28,,Estuary Oils
Schools Total,School Group 7 � Pupil Capacity 501-1800,MCC Schools,Caldicot School,Employees,Direct Employee Expenses,Agency Staff,,25/10/2023,30/10/2023,6365.07,,Teaching Personnel
Schools Total,School Group 7 � Pupil Capacity 501-1800,MCC Schools,Caldicot School,Employees,Direct Employee Expenses,Agency Staff,,17/09/2023,06/10/2023,123.24,,New Directions Education Ltd
Schools Total,School Group 7 � Pupil Capacity 501-1800,MCC Schools,Caldicot School,Employees,Direct Employee Expenses,Agency Staff,,17/09/2023,06/10/2023,123.24,,New Directions Education Ltd
Schools Total,School Group 7 � Pupil Capacity 501-1800,MCC Schools,Caldicot School,Employees,Direct Employee Expenses,Agency Staff,,17/09/2023,06/10/2023,123.24,,New Directions Education Ltd
Schools Total,School Group 7 � Pupil Capacity 501-1800,MCC Schools,Caldicot School,Employees,Direct Employee Expenses,Agency Staff,,17/09/2023,06/10/2023,123.24,,New Directions Education Ltd
Schools Total,School Group 7 � Pupil Capacity 501-1800,MCC Schools,Caldicot School,Employees,Direct Employee Expenses,Agency Staff,,17/09/2023,06/10/2023,228,,New Directions Education Ltd
Schools Total,School Group 7 � Pupil Capacity 501-1800,MCC Schools,Caldicot School,Employees,Direct Employee Expenses,Agency Staff,,17/09/2023,06/10/2023,228,,New Directions Education Ltd
Schools Total,School Group 7 � Pupil Capacity 501-1800,MCC Schools,Caldicot School,Employees,Direct Employee Expenses,Agency Staff,,17/09/2023,06/10/2023,228,,New Directions Education Ltd
Schools Total,School Group 7 � Pupil Capacity 501-1800,MCC Schools,Caldicot School,Employees,Direct Employee Expenses,Agency Staff,,28/09/2023,05/10/2023,416.34,,Apollo Teaching Services LTD
Schools Total,School Group 7 � Pupil Capacity 501-1800,MCC Schools,Chepstow School,Employees,Direct Employee Expenses,Agency Staff,,27/09/2023,10/10/2023,437.88,,Teaching Personnel
Schools Total,School Group 7 � Pupil Capacity 501-1800,MCC Schools,Caldicot School,Employees,Direct Employee Expenses,Agency Staff,,17/09/2023,06/10/2023,118.01,,New Directions Education Ltd
Schools Total,School Group 7 � Pupil Capacity 501-1800,MCC Schools,Caldicot School,Employees,Direct Employee Expenses,Agency Staff,,17/09/2023,06/10/2023,118.01,,New Directions Education Ltd
Schools Total,School Group 7 � Pupil Capacity 501-1800,MCC Schools,Caldicot School,Employees,Direct Employee Expenses,Agency Staff,,17/09/2023,06/10/2023,118.01,,New Directions Education Ltd
Schools Total,School Group 7 � Pupil Capacity 501-1800,MCC Schools,Caldicot School,Employees,Direct Employee Expenses,Agency Staff,,17/09/2023,06/10/2023,228,,New Directions Education Ltd
Schools Total,School Group 7 � Pupil Capacity 501-1800,MCC Schools,Caldicot School,Employees,Direct Employee Expenses,Agency Staff,,17/09/2023,06/10/2023,228,,New Directions Education Ltd
Schools Total,School Group 7 � Pupil Capacity 501-1800,MCC Schools,Caldicot School,Employees,Direct Employee Expenses,Agency Staff,,17/09/2023,06/10/2023,118.56,,New Directions Education Ltd
Schools Total,School Group 7 � Pupil Capacity 501-1800,MCC Schools,Caldicot School,Employees,Direct Employee Expenses,Agency Staff,,17/09/2023,06/10/2023,118.56,,New Directions Education Ltd
Schools Total,School Group 7 � Pupil Capacity 501-1800,MCC Schools,Caldicot School,Employees,Direct Employee Expenses,Agency Staff,,17/09/2023,06/10/2023,118.56,,New Directions Education Ltd
Schools Total,School Group 7 � Pupil Capacity 501-1800,MCC Schools,Caldicot School,Employees,Direct Employee Expenses,Agency Staff,,17/09/2023,06/10/2023,118.56,,New Directions Education Ltd
Schools Total,School Group 7 � Pupil Capacity 501-1800,MCC Schools,Caldicot School,Employees,Direct Employee Expenses,Agency Staff,,17/09/2023,06/10/2023,118.56,,New Directions Education Ltd
Schools Total,School Group 7 � Pupil Capacity 501-1800,MCC Schools,Caldicot School,Employees,Direct Employee Expenses,Agency Staff,,17/09/2023,06/10/2023,118.56,,New Directions Education Ltd
Schools Total,School Group 7 � Pupil Capacity 501-1800,MCC Schools,Caldicot School,Employees,Direct Employee Expenses,Agency Staff,,17/09/2023,06/10/2023,118.56,,New Directions Education Ltd
Schools Total,School Group 7 � Pupil Capacity 501-1800,MCC Schools,Caldicot School,Employees,Direct Employee Expenses,Agency Staff,,17/09/2023,06/10/2023,118.56,,New Directions Education Ltd
Schools Total,School Group 7 � Pupil Capacity 501-1800,MCC Schools,Caldicot School,Employees,Direct Employee Expenses,Agency Staff,,02/10/2023,05/10/2023,1040.85,,Apollo Teaching Services LTD
Schools Total,School Group 7 � Pupil Capacity 501-1800,MCC Schools,Caldicot School,Employees,Direct Employee Expenses,Agency Staff,,16/10/2023,23/10/2023,113.93,,Apollo Teaching Services LTD
Schools Total,School Group 7 � Pupil Capacity 501-1800,MCC Schools,Caldicot School,Employees,Direct Employee Expenses,Agency Staff,,16/10/2023,23/10/2023,1873.53,,Apollo Teaching Services LTD
Schools Total,School Group 7 � Pupil Capacity 501-1800,MCC Schools,Caldicot School,Employees,Direct Employee Expenses,Agency Staff,,17/09/2023,06/10/2023,118.01,,New Directions Education Ltd
Schools Total,School Group 7 � Pupil Capacity 501-1800,MCC Schools,Caldicot School,Employees,Direct Employee Expenses,Agency Staff,,17/09/2023,06/10/2023,165,,New Directions Education Ltd
Schools Total,School Group 7 � Pupil Capacity 501-1800,MCC Schools,Caldicot School,Employees,Direct Employee Expenses,Agency Staff,,17/09/2023,06/10/2023,215.6,,New Directions Education Ltd
Schools Total,School Group 7 � Pupil Capacity 501-1800,MCC Schools,Caldicot School,Employees,Direct Employee Expenses,Agency Staff,,17/09/2023,06/10/2023,215.6,,New Directions Education Ltd
Schools Total,School Group 7 � Pupil Capacity 501-1800,MCC Schools,Caldicot School,Employees,Direct Employee Expenses,Agency Staff,,17/09/2023,06/10/2023,228,,New Directions Education Ltd
Schools Total,School Group 7 � Pupil Capacity 501-1800,MCC Schools,Caldicot School,Employees,Direct Employee Expenses,Agency Staff,,04/10/2023,10/10/2023,6244.03,,Teaching Personnel
Schools Total,School Group 7 � Pupil Capacity 501-1800,MCC Schools,Caldicot School,Employees,Direct Employee Expenses,Agency Staff,,04/10/2023,10/10/2023,1524.98,,Back Office Support Services Ltd (Education Supply Pool)
Schools Total,School Group 7 � Pupil Capacity 501-1800,MCC Schools,Chepstow School,Employees,Direct Employee Expenses,Agency Staff,,04/10/2023,17/10/2023,437.88,,Teaching Personnel
"Facilities, Fleet & Decarbonisation",Transport Department,Communities & Place,Transport,Transport,Direct Transport Costs,Diesel,,09/10/2023,17/10/2023,3767.4,,Estuary Oils
Schools Total,School Group 7 � Pupil Capacity 501-1800,MCC Schools,Caldicot School,Employees,Direct Employee Expenses,Agency Staff,,27/09/2023,13/10/2023,1524.98,,Back Office Support Services Ltd (Education Supply Pool)
"Facilities, Fleet & Decarbonisation",Transport Department,Communities & Place,Transport,Transport,Direct Transport Costs,Diesel,,29/09/2023,10/10/2023,8998.56,,Estuary Oils
"Facilities, Fleet & Decarbonisation",Transport Department,Communities & Place,Transport,Transport,Direct Transport Costs,Diesel,,02/10/2023,10/10/2023,10726.4,,Estuary Oils
Schools Total,School Group 7 � Pupil Capacity 501-1800,MCC Schools,Caldicot School,Employees,Direct Employee Expenses,Agency Staff,,17/09/2023,06/10/2023,215.6,,New Directions Education Ltd
Schools Total,School Group 7 � Pupil Capacity 501-1800,MCC Schools,Caldicot School,Employees,Direct Employee Expenses,Agency Staff,,17/09/2023,06/10/2023,215.6,,New Directions Education Ltd
Schools Total,School Group 7 � Pupil Capacity 501-1800,MCC Schools,Caldicot School,Employees,Direct Employee Expenses,Agency Staff,,17/09/2023,06/10/2023,123.24,,New Directions Education Ltd
Schools Total,School Group 7 � Pupil Capacity 501-1800,MCC Schools,Caldicot School,Employees,Direct Employee Expenses,Agency Staff,,11/10/2023,17/10/2023,7148.84,,Teaching Personnel
Schools Total,School Group 7 � Pupil Capacity 501-1800,MCC Schools,Caldicot School,Employees,Direct Employee Expenses,Agency Staff,,11/10/2023,17/10/2023,3466.98,,Back Office Support Services Ltd (Education Supply Pool)
Schools Total,School Group 7 � Pupil Capacity 501-1800,MCC Schools,Caldicot School,Employees,Direct Employee Expenses,Agency Staff,,11/10/2023,17/10/2023,2451.95,,Suppleo Recruitment Ltd
Schools Total,School Group 7 � Pupil Capacity 501-1800,MCC Schools,Caldicot School,Employees,Direct Employee Expenses,Agency Staff,,11/10/2023,17/10/2023,280,,Academics
Schools Total,School Group 7 � Pupil Capacity 501-1800,MCC Schools,Caldicot School,Employees,Direct Employee Expenses,Agency Staff,,11/10/2023,17/10/2023,450.08,,Academics
Schools Total,School Group 7 � Pupil Capacity 501-1800,MCC Schools,Caldicot School,Employees,Direct Employee Expenses,Agency Staff,,15/10/2023,20/10/2023,118.56,,New Directions Education Ltd
Children Services,Children Services Teams,Social Care and Health,Family Support and Protection Team � North,Employees,Direct Employee Expenses,Agency Staff,,27/09/2023,02/10/2023,1779.25,,Liquid Personnel
Children Services,Children Services Teams,Social Care and Health,Family Support and Protection Team � North,Employees,Direct Employee Expenses,Agency Staff,,27/09/2023,02/10/2023,1763.62,,Liquid Personnel
Adult Services,Direct Care Residential,Social Care and Health,Severn View Residential,Employees,Direct Employee Expenses,Agency Staff,,20/09/2023,02/10/2023,564,,Support Ethics Ltd
Adult Services,Direct Care Residential,Social Care and Health,Severn View Residential,Employees,Direct Employee Expenses,Agency Staff,,27/09/2023,02/10/2023,588.25,,Support Ethics Ltd
Adult Services,Direct Care Residential,Social Care and Health,Severn View Residential,Employees,Direct Employee Expenses,Agency Staff,,27/09/2023,02/10/2023,186.55,,Support Ethics Ltd
Children Services,Supporting Children & Young People Service,Social Care and Health,Business Support Team,Supplies & Services,Communications and Computing,Computer Licences,,28/09/2023,02/10/2023,122.6,,SRS Public
"Commercial, Corporate & landlord Services",Property Services & Facilities Management,Resources,Programmed Maintenance,Premises,"Repairs, Alterations & Maintenance of Buildings",Premises Repairs And Maintenance,,09/08/2023,09/10/2023,178.94,,Fire Safety Direct
"Commercial, Corporate & landlord Services",Property Services & Facilities Management,Resources,Programmed Maintenance,Premises,"Repairs, Alterations & Maintenance of Buildings",Premises Repairs And Maintenance,,29/08/2023,09/10/2023,505.62,,Fire Safety Direct
Adult Services,Community Care Team,Social Care and Health,Abergavenny Adult Team,Employees,Direct Employee Expenses,Agency Staff,,23/08/2023,04/10/2023,915.01,,Piers Meadows Recruitment Limited
Adult Services,Community Care Team,Social Care and Health,Abergavenny Adult Team,Employees,Direct Employee Expenses,Agency Staff,,23/08/2023,04/10/2023,9,,Piers Meadows Recruitment Limited
Adult Services,Community Care Team,Social Care and Health,Abergavenny Adult Team,Employees,Direct Employee Expenses,Agency Staff,,23/08/2023,04/10/2023,-9,,Piers Meadows Recruitment Limited
Adult Services,Community Care Team,Social Care and Health,Abergavenny Adult Team,Employees,Direct Employee Expenses,Agency Staff,,09/08/2023,04/10/2023,776.58,,Piers Meadows Recruitment Limited
Adult Services,Community Care Team,Social Care and Health,Abergavenny Adult Team,Employees,Direct Employee Expenses,Agency Staff,,30/08/2023,04/10/2023,1087.72,,Piers Meadows Recruitment Limited
Schools Total,School Group 2 � Pupil Capacity 144-314,MCC Schools,Goytre Fawr Primary School,Supplies & Services,Communications and Computing,IT Hardware,,16/10/2023,18/10/2023,191.07,,Edutech
Schools Total,School Group 2 � Pupil Capacity 144-314,MCC Schools,Llanfoist Fawr Primary School,Supplies & Services,Grants and Subscriptions,Subscriptions,,16/10/2023,18/10/2023,105.85,,Maths Circle Ltd
Adult Services,Community Care Team,Social Care and Health,Abergavenny Adult Team,Employees,Direct Employee Expenses,Agency Staff,,30/08/2023,04/10/2023,15.3,,Piers Meadows Recruitment Limited
Adult Services,Community Care Team,Social Care and Health,Abergavenny Adult Team,Employees,Direct Employee Expenses,Agency Staff,,30/08/2023,04/10/2023,-15.3,,Piers Meadows Recruitment Limited
Adult Services,Community Care Team,Social Care and Health,Abergavenny Adult Team,Employees,Direct Employee Expenses,Agency Staff,,06/09/2023,04/10/2023,-0.9,,Piers Meadows Recruitment Limited
Adult Services,Community Care Team,Social Care and Health,Abergavenny Adult Team,Employees,Direct Employee Expenses,Agency Staff,,27/09/2023,04/10/2023,933.95,,Piers Meadows Recruitment Limited
Adult Services,Community Care Team,Social Care and Health,Abergavenny Adult Team,Employees,Direct Employee Expenses,Agency Staff,,27/09/2023,04/10/2023,9.45,,Piers Meadows Recruitment Limited
Adult Services,Community Care Team,Social Care and Health,Abergavenny Adult Team,Employees,Direct Employee Expenses,Agency Staff,,27/09/2023,04/10/2023,-9.45,,Piers Meadows Recruitment Limited
"Commercial, Corporate & landlord Services",Property Services & Facilities Management,Resources,Programmed Maintenance,Premises,"Repairs, Alterations & Maintenance of Buildings",Premises Repairs And Maintenance,,09/08/2023,04/10/2023,6.9,,Fire Safety Direct
Adult Services,Community Care Team,Social Care and Health,Abergavenny Adult Team,Employees,Direct Employee Expenses,Agency Staff,,13/09/2023,04/10/2023,944.34,,Piers Meadows Recruitment Limited
Adult Services,Community Care Team,Social Care and Health,Abergavenny Adult Team,Employees,Direct Employee Expenses,Agency Staff,,13/09/2023,04/10/2023,1.35,,Piers Meadows Recruitment Limited
Adult Services,Community Care Team,Social Care and Health,Abergavenny Adult Team,Employees,Direct Employee Expenses,Agency Staff,,13/09/2023,04/10/2023,-1.35,,Piers Meadows Recruitment Limited
SCH Support,Finance (SHS),Social Care and Health,Finance,Supplies & Services,Communications and Computing,IT Hardware,,28/09/2023,09/10/2023,24,,SRS Public
Schools Total,School Group 7 � Pupil Capacity 501-1800,MCC Schools,Monmouth Comprehensive,Premises,"Repairs, Alterations & Maintenance of Buildings",Security Of Premises.,,03/10/2023,09/10/2023,41,,Chamberlains Security
Countryside & Culture,Countryside,MonLife Directorate,Countryside Access,Supplies & Services,"Equipment, Furniture and Materials",Advertising,,22/09/2023,11/10/2023,420,,Tindle Newspapers Wales & The Borders Ltd
"Leisure, Youth & Outdoor Adventure",Leisure Services,MonLife Directorate,Monmouth Leisure Centre,Supplies & Services,Catering,Catering,,01/08/2023,11/10/2023,593.84,,Slush Puppie
Children Services,Children Services Teams,Social Care and Health,Family Support and Protection Team - South,Employees,Direct Employee Expenses,Agency Staff,,03/10/2023,09/10/2023,1290,,NonStop Recruitment Ltd.
Schools Total,School Group 7 � Pupil Capacity 501-1800,MCC Schools,Monmouth Comprehensive,Premises,Energy Costs,Electricity.,,02/10/2023,25/10/2023,2.63,,EDF Energy
People,Communications,People & Governance,Communications,Supplies & Services,Communications and Computing,Software Maintenance,,22/09/2023,18/10/2023,312.84,,Hosting UK Ltd
People,Communications,People & Governance,Communications,Supplies & Services,Communications and Computing,Software Maintenance,,22/09/2023,18/10/2023,312.84,,Hosting UK Ltd
"Enterprise, Housing & Community Animation",General Fund Housing,Communities & Place,Homelessness,Premises,"Repairs, Alterations & Maintenance of Buildings",Security Of Premises.,,24/10/2023,27/10/2023,4000.92,,M J Events Support Ltd
Children Services,Children Services Teams,Social Care and Health,Youth Offending Team,Supplies & Services,Communications and Computing,Computer Licences,,09/10/2023,18/10/2023,3625,,The Viewpoint Organisation
People,Communications,People & Governance,Communications,Supplies & Services,Communications and Computing,Software Maintenance,,20/09/2023,18/10/2023,312.84,,Hosting UK Ltd
"Commercial, Corporate & landlord Services",Property Services & Facilities Management,Resources,Programmed Maintenance,Premises,"Repairs, Alterations & Maintenance of Buildings",Premises Repairs And Maintenance,,12/10/2023,17/10/2023,588.06,,Lorne Stewart  Plc
"Commercial, Corporate & landlord Services",Property Services & Facilities Management,Resources,Programmed Maintenance,Premises,"Repairs, Alterations & Maintenance of Buildings",Premises Repairs And Maintenance,,12/10/2023,17/10/2023,588.06,,Lorne Stewart  Plc
"Commercial, Corporate & landlord Services",Property Services & Facilities Management,Resources,Programmed Maintenance,Premises,"Repairs, Alterations & Maintenance of Buildings",Premises Repairs And Maintenance,,12/10/2023,17/10/2023,588.06,,Lorne Stewart  Plc
Adult Services,Community Care Team,Social Care and Health,Abergavenny Adult Team,Employees,Direct Employee Expenses,Agency Staff,,20/09/2023,04/10/2023,888.42,,Piers Meadows Recruitment Limited
Adult Services,Community Care Team,Social Care and Health,Abergavenny Adult Team,Employees,Direct Employee Expenses,Agency Staff,,06/09/2023,04/10/2023,629.56,,Piers Meadows Recruitment Limited
Adult Services,Community Care Team,Social Care and Health,Abergavenny Adult Team,Employees,Direct Employee Expenses,Agency Staff,,06/09/2023,04/10/2023,0.9,,Piers Meadows Recruitment Limited
"Placemaking, Highways & Flooding",Highways Dev & Car Parks,Communities & Place,Transport Policy,Supplies & Services,Communications and Computing,IT Software,,29/09/2023,04/10/2023,62.5,,Metric Group Ltd
Children Services,Children Services Teams,Social Care and Health,Long Term Support Team,Employees,Direct Employee Expenses,Agency Staff,,27/09/2023,25/10/2023,1641.5,,Liquid Personnel
"Enterprise, Housing & Community Animation",General Fund Housing,Communities & Place,Homelessness,Supplies & Services,Services,Homelessness Bed & Breakfast Accomodation,,04/10/2023,25/10/2023,43200,,Rock Forge B&B
"Enterprise, Housing & Community Animation",General Fund Housing,Communities & Place,Homelessness,Supplies & Services,Services,Homelessness Bed & Breakfast Accomodation,,12/10/2023,25/10/2023,693,,The Park Hotel
"Placemaking, Highways & Flooding",Highways Dev & Car Parks,Communities & Place,Traffic & Road Safety,Supplies & Services,"Equipment, Furniture and Materials",Advertising,,29/09/2023,31/10/2023,420,,Tindle Newspapers Wales & The Borders Ltd
"Placemaking, Highways & Flooding",Highways Dev & Car Parks,Communities & Place,Traffic & Road Safety,Supplies & Services,"Equipment, Furniture and Materials",Advertising,,29/09/2023,31/10/2023,420,,Tindle Newspapers Wales & The Borders Ltd
"Placemaking, Highways & Flooding",Highways Dev & Car Parks,Communities & Place,Traffic & Road Safety,Supplies & Services,"Equipment, Furniture and Materials",Advertising,,06/10/2023,31/10/2023,420,,Tindle Newspapers Wales & The Borders Ltd
"Placemaking, Highways & Flooding",Highways Dev & Car Parks,Communities & Place,Traffic & Road Safety,Supplies & Services,"Equipment, Furniture and Materials",Advertising,,06/10/2023,31/10/2023,420,,Tindle Newspapers Wales & The Borders Ltd
"Placemaking, Highways & Flooding",Highways Dev & Car Parks,Communities & Place,Traffic & Road Safety,Supplies & Services,"Equipment, Furniture and Materials",Advertising,,06/10/2023,31/10/2023,420,,Tindle Newspapers Wales & The Borders Ltd
"Placemaking, Highways & Flooding",Highways Dev & Car Parks,Communities & Place,Traffic & Road Safety,Supplies & Services,"Equipment, Furniture and Materials",Advertising,,06/10/2023,31/10/2023,420,,Tindle Newspapers Wales & The Borders Ltd
"Placemaking, Highways & Flooding",Highways Dev & Car Parks,Communities & Place,Traffic & Road Safety,Supplies & Services,"Equipment, Furniture and Materials",Advertising,,06/10/2023,31/10/2023,420,,Tindle Newspapers Wales & The Borders Ltd
"Facilities, Fleet & Decarbonisation",Transport Department,Communities & Place,Transport,Premises,Energy Costs,Electricity.,,02/10/2023,25/10/2023,153.74,,EDF Energy
"Facilities, Fleet & Decarbonisation",Transport Department,Communities & Place,Transport,Premises,Energy Costs,Electricity.,,02/10/2023,25/10/2023,0.27,,EDF Energy
Schools Total,School Group 7 � Pupil Capacity 501-1800,MCC Schools,Chepstow School,Supplies & Services,Communications and Computing,IT Hardware,,13/10/2023,27/10/2023,42.48,,Amazon Payments UK Limited
"Leisure, Youth & Outdoor Adventure",Leisure Services,MonLife Directorate,Monmouth Leisure Centre,Supplies & Services,Catering,Catering,,01/10/2023,04/10/2023,432.9,,Raglan Dairy Ltd
Adult Services,Community Care Team,Social Care and Health,Abergavenny Adult Team,Employees,Direct Employee Expenses,Agency Staff,,20/09/2023,04/10/2023,0.9,,Piers Meadows Recruitment Limited
Adult Services,Community Care Team,Social Care and Health,Abergavenny Adult Team,Employees,Direct Employee Expenses,Agency Staff,,20/09/2023,04/10/2023,-0.9,,Piers Meadows Recruitment Limited
"Commercial, Corporate & landlord Services",Property Services & Facilities Management,Resources,Programmed Maintenance,Premises,"Repairs, Alterations & Maintenance of Buildings",Premises Repairs And Maintenance,,18/09/2023,04/10/2023,157.5,,Development Plus Limited
People,Communications,People & Governance,Communications,Supplies & Services,Communications and Computing,IT Software,,30/09/2023,18/10/2023,200,,Paulund Ltd
Schools Total,School Group 2 � Pupil Capacity 144-314,MCC Schools,Shirenewton Primary School,Supplies & Services,Communications and Computing,Computer Consumables,,29/09/2023,18/10/2023,174.38,,Uk Laser Suppliers
Schools Total,School Group 2 � Pupil Capacity 144-314,MCC Schools,Shirenewton Primary School,Supplies & Services,Communications and Computing,Computer Consumables,,03/10/2023,18/10/2023,29.72,,Uk Laser Suppliers
"Enterprise, Housing & Community Animation",Community & Partnerships Development,Communities & Place,Coronavirus Recovery Grant for Volunteering,Supplies & Services,Communications and Computing,Computer Licences,,18/09/2023,31/10/2023,1500,,TeamKinetic
"Placemaking, Highways & Flooding",Highways Dev & Car Parks,Communities & Place,Traffic & Road Safety,Supplies & Services,"Equipment, Furniture and Materials",Advertising,,06/10/2023,31/10/2023,420,,Tindle Newspapers Wales & The Borders Ltd
Democratic Services,Democratic Services,People & Governance,County Community Elections,Supplies & Services,Communications and Computing,IT Software,,11/10/2023,11/10/2023,-1320,,Bytes Software Services Ltd
"Enterprise, Housing & Community Animation",General Fund Housing,Communities & Place,Homelessness,Supplies & Services,Services,Homelessness Bed & Breakfast Accomodation,,05/10/2023,11/10/2023,291.69,,Raglan Lodge
"Enterprise, Housing & Community Animation",General Fund Housing,Communities & Place,Homelessness,Supplies & Services,Services,Homelessness Bed & Breakfast Accomodation,,05/10/2023,11/10/2023,291.69,,Raglan Lodge
"Enterprise, Housing & Community Animation",General Fund Housing,Communities & Place,Homelessness,Supplies & Services,Services,Homelessness Bed & Breakfast Accomodation,,05/10/2023,11/10/2023,291.69,,Raglan Lodge
"Enterprise, Housing & Community Animation",General Fund Housing,Communities & Place,Homelessness,Supplies & Services,Services,Homelessness Bed & Breakfast Accomodation,,30/09/2023,11/10/2023,3900,,REDACTED PERSONAL DATA
"Enterprise, Housing & Community Animation",General Fund Housing,Communities & Place,Homelessness,Supplies & Services,Services,Homelessness Bed & Breakfast Accomodation,,09/09/2023,11/10/2023,20130,,Naya Bridge Ltd
"Enterprise, Housing & Community Animation",General Fund Housing,Communities & Place,Lodgings Scheme,Supplies & Services,Services,Homelessness Bed & Breakfast Accomodation,,24/09/2023,11/10/2023,1190,,Kardinale Investments Ltd
Schools Total,School Group 7 � Pupil Capacity 501-1800,MCC Schools,Monmouth Comprehensive,Supplies & Services,Communications and Computing,Postages,,12/10/2023,17/10/2023,114,,Kane Mailing Systems Ltd
Children Services,Children Services Teams,Social Care and Health,Family Support and Protection Team - South,Employees,Direct Employee Expenses,Agency Staff,,10/10/2023,18/10/2023,1290,,NonStop Recruitment Ltd.
Schools Total,School Group 2 � Pupil Capacity 144-314,MCC Schools,Thornwell Primary School,Premises,Energy Costs,Electricity.,,02/10/2023,25/10/2023,11.28,,EDF Energy
Schools Total,School Group 2 � Pupil Capacity 144-314,MCC Schools,Thornwell Primary School,Premises,Energy Costs,Electricity.,,02/10/2023,25/10/2023,1768.5,,EDF Energy
Children Services,Children Services Teams,Social Care and Health,Family Support and Protection Team - South,Employees,Direct Employee Expenses,Agency Staff,,17/10/2023,20/10/2023,1376,,NonStop Recruitment Ltd.
"Leisure, Youth & Outdoor Adventure",Leisure Services,MonLife Directorate,Abergavenny Leisure Centre,Supplies & Services,"Equipment, Furniture and Materials",Marketing Materials,,28/09/2023,18/10/2023,781.25,,Swype
"Leisure, Youth & Outdoor Adventure",Leisure Services,MonLife Directorate,Monmouth Leisure Centre,Supplies & Services,"Equipment, Furniture and Materials",Marketing Materials,,28/09/2023,18/10/2023,781.25,,Swype
"Leisure, Youth & Outdoor Adventure",Leisure Services,MonLife Directorate,Chepstow Leisure Centre,Supplies & Services,"Equipment, Furniture and Materials",Marketing Materials,,28/09/2023,18/10/2023,781.25,,Swype
"Leisure, Youth & Outdoor Adventure",Leisure Services,MonLife Directorate,Caldicot Leisure Centre,Supplies & Services,"Equipment, Furniture and Materials",Marketing Materials,,28/09/2023,18/10/2023,781.25,,Swype
"Enterprise, Housing & Community Animation",General Fund Housing,Communities & Place,Homelessness,Supplies & Services,Services,Homelessness Bed & Breakfast Accomodation,,01/10/2023,18/10/2023,499.95,,The Huntsman Hotel
"Enterprise, Housing & Community Animation",General Fund Housing,Communities & Place,Monmouthshire Letting Service,Supplies & Services,"Equipment, Furniture and Materials",Advertising,,01/10/2023,18/10/2023,144,,Focus Magazines Ltd
"Leisure, Youth & Outdoor Adventure",Leisure Services,MonLife Directorate,Monmouth Leisure Centre,Supplies & Services,Catering,Catering,,13/10/2023,20/10/2023,809.43,,Costa Coffee
"Leisure, Youth & Outdoor Adventure",Leisure Services,MonLife Directorate,Monmouth Leisure Centre,Supplies & Services,Catering,Catering,,13/10/2023,20/10/2023,409.38,,Costa Coffee
"Leisure, Youth & Outdoor Adventure",Leisure Services,MonLife Directorate,Monmouth Leisure Centre,Supplies & Services,Catering,Catering,,13/10/2023,20/10/2023,-409.38,,Costa Coffee
"Enterprise, Housing & Community Animation",Business Growth & Enterprise,Communities & Place,Multiply SPF,Supplies & Services,"Equipment, Furniture and Materials",Removal Costs,,29/09/2023,04/10/2023,280,,St Michaels Centre (Abergavenny) Trust Ltd
Schools Total,School Group 7 � Pupil Capacity 501-1800,MCC Schools,King Henry 3-19 School,Supplies & Services,Communications and Computing,Licences,,22/08/2023,18/10/2023,5.93,,GL Education Group
"Enterprise, Housing & Community Animation",General Fund Housing,Communities & Place,Homelessness,Supplies & Services,Services,Homelessness Bed & Breakfast Accomodation,,09/10/2023,20/10/2023,553,,Stepping Stone Newport Ltd
Neighbourhood Services,Highways,Communities & Place,External Contracts,Premises,"Repairs, Alterations & Maintenance of Buildings",Premises Repairs And Maintenance,,24/09/2023,05/10/2023,1842,,Notchface Ltd T/A AFG Engineering
Neighbourhood Services,Highways,Communities & Place,External Contracts,Premises,"Repairs, Alterations & Maintenance of Buildings",Premises Repairs And Maintenance,,24/09/2023,05/10/2023,720,,Notchface Ltd T/A AFG Engineering
Neighbourhood Services,Highways,Communities & Place,External Contracts,Premises,"Repairs, Alterations & Maintenance of Buildings",Premises Repairs And Maintenance,,24/09/2023,05/10/2023,-720,,Notchface Ltd T/A AFG Engineering
Children Services,Children Services Teams,Social Care and Health,Family Support and Protection Team � North,Employees,Direct Employee Expenses,Agency Staff,,09/10/2023,20/10/2023,1694.23,,Leaders In Care
Democratic Services,Democratic Services,People & Governance,Members Costs,Supplies & Services,"Equipment, Furniture and Materials",Civic Events & Activities,,26/09/2023,05/10/2023,990,,REDACTED PERSONAL DATA
"Enterprise, Housing & Community Animation",General Fund Housing,Communities & Place,Homelessness,Supplies & Services,Services,Homelessness Bed & Breakfast Accomodation,,09/10/2023,20/10/2023,1540,,REDACTED PERSONAL DATA
Schools Total,School Group 7 � Pupil Capacity 501-1800,MCC Schools,Caldicot School,Supplies & Services,Communications and Computing,Postages,,28/08/2023,20/10/2023,56.1,,Purchase Power
"Leisure, Youth & Outdoor Adventure",Leisure Services,MonLife Directorate,Monmouth Leisure Centre,Supplies & Services,Catering,Catering,,28/09/2023,04/10/2023,163.79,,Castell Howell Foods Ltd
"Leisure, Youth & Outdoor Adventure",Leisure Services,MonLife Directorate,Monmouth Leisure Centre,Supplies & Services,Catering,Catering,,28/09/2023,04/10/2023,64.79,,Castell Howell Foods Ltd
"Leisure, Youth & Outdoor Adventure",Leisure Services,MonLife Directorate,Monmouth Leisure Centre,Supplies & Services,Catering,Catering,,28/09/2023,04/10/2023,-64.79,,Castell Howell Foods Ltd
Schools Total,School Group 7 � Pupil Capacity 501-1800,MCC Schools,Monmouth Comprehensive,Supplies & Services,"Equipment, Furniture and Materials",Advertising,,13/10/2023,17/10/2023,90,,Alicat Design
Standards,Early Years,Children & Young People,Flying Start Grant,Supplies & Services,Grants and Subscriptions,Grants Payable,,12/10/2023,17/10/2023,33347.39,,Aneurin Bevan Local Health Board
"Enterprise, Housing & Community Animation",General Fund Housing,Communities & Place,Homelessness,Supplies & Services,Services,Homelessness Bed & Breakfast Accomodation,,09/10/2023,18/10/2023,1120,,REDACTED PERSONAL DATA
"Leisure, Youth & Outdoor Adventure",Leisure Services,MonLife Directorate,Monmouth Leisure Centre,Supplies & Services,Catering,Catering,,26/10/2023,31/10/2023,-68.96,,Castell Howell Foods Ltd
Schools Total,School Group 2 � Pupil Capacity 144-314,MCC Schools,Thornwell Primary School,Supplies & Services,Communications and Computing,Computer Consumables,,20/09/2023,20/10/2023,11.88,,Amazon Payments UK Limited
Neighbourhood Services,Highways,Communities & Place,Internal others,Supplies & Services,"Equipment, Furniture and Materials",Display Equipment,,15/09/2023,20/10/2023,7676.5,,Griffiths Signs & Equipment Co.
"Leisure, Youth & Outdoor Adventure",Leisure Services,MonLife Directorate,Monmouth Leisure Centre,Supplies & Services,Catering,Catering,,19/10/2023,23/10/2023,-33.98,,Castell Howell Foods Ltd
Schools Total,SCHGRP3 � School Group 3 � Pupil Capacity 315-500,MCC Schools,Undy Primary School,Premises,Energy Costs,Electricity.,,02/10/2023,25/10/2023,2730.13,,EDF Energy
Schools Total,SCHGRP3 � School Group 3 � Pupil Capacity 315-500,MCC Schools,Undy Primary School,Premises,Energy Costs,Electricity.,,02/10/2023,25/10/2023,6.07,,EDF Energy
Adult Services,Direct Care Residential,Social Care and Health,Severn View Residential,Employees,Direct Employee Expenses,Agency Staff,,20/09/2023,05/10/2023,260.78,,Support Ethics Ltd
Adult Services,Direct Care Residential,Social Care and Health,Severn View Residential,Employees,Direct Employee Expenses,Agency Staff,,20/09/2023,05/10/2023,159.8,,Support Ethics Ltd
Adult Services,Direct Care Residential,Social Care and Health,Severn View Residential,Employees,Direct Employee Expenses,Agency Staff,,20/09/2023,05/10/2023,213.2,,Support Ethics Ltd
Adult Services,Direct Care Residential,Social Care and Health,Severn View Residential,Employees,Direct Employee Expenses,Agency Staff,,20/09/2023,05/10/2023,181.22,,Support Ethics Ltd
Schools Total,School Group 2 � Pupil Capacity 144-314,MCC Schools,Osbaston CiW Primary School (VC),Supplies & Services,Grants and Subscriptions,Subscriptions,,05/10/2023,18/10/2023,275,,REDACTED PERSONAL DATA
Finance & Business Devlopment,Borough Theatre,MonLife Directorate,Borough Theatre General,Supplies & Services,"Equipment, Furniture and Materials",Promotions And Exhibitions,,09/10/2023,18/10/2023,1800,,RLN Music
Finance & Business Devlopment,Borough Theatre,MonLife Directorate,Borough Theatre General,Supplies & Services,"Equipment, Furniture and Materials",Promotions And Exhibitions,,16/09/2023,18/10/2023,1713.15,,Forget Me Not Productions
Schools Total,School Group 2 � Pupil Capacity 144-314,MCC Schools,Goytre Fawr Primary School,Supplies & Services,Communications and Computing,Computer Consumables,,27/09/2023,18/10/2023,32.49,,ITeach Ltd
Finance & Business Devlopment,Attractions,MonLife Directorate,Old Station Tintern,Supplies & Services,Communications and Computing,Postages,,07/08/2023,18/10/2023,19,,Metric Group Ltd
Neighbourhood Services,Highways,Communities & Place,Internal others,Supplies & Services,"Equipment, Furniture and Materials",Display Equipment,,25/08/2023,10/10/2023,110,,Griffiths Signs & Equipment Co.
Schools Total,School Group 2 � Pupil Capacity 144-314,MCC Schools,Pembroke Primary School,Supplies & Services,Communications and Computing,Licences,,05/10/2023,10/10/2023,228,,OFEC Consulting Ltd
"Enterprise, Housing & Community Animation",Community & Partnerships Development,Communities & Place,Participatory Funding ABUHB,Supplies & Services,Grants and Subscriptions,Grants Payable,,26/09/2023,04/10/2023,4000,,Bulwark Senior Citizens Club
Schools Total,School Group 2 � Pupil Capacity 144-314,MCC Schools,Goytre Fawr Primary School,Supplies & Services,Communications and Computing,Postages,,28/09/2023,04/10/2023,5,,School Badges UK
Schools Total,School Group 2 � Pupil Capacity 144-314,MCC Schools,Osbaston CiW Primary School (VC),Supplies & Services,Communications and Computing,Computer Consumables,,20/06/2023,04/10/2023,325.85,,Infotone Imaging Supplies
Schools Total,School Group 2 � Pupil Capacity 144-314,MCC Schools,Goytre Fawr Primary School,Supplies & Services,Communications and Computing,IT Hardware,,02/10/2023,04/10/2023,86.64,,ITeach Ltd
Schools Total,School Group 2 � Pupil Capacity 144-314,MCC Schools,Llanfoist Fawr Primary School,Supplies & Services,Communications and Computing,IT Hardware,,30/09/2023,04/10/2023,25.68,,Amazon Payments UK Limited
Individual School Budget,Individual Schools Budget,Children & Young People,ISB Primary Schools,Supplies & Services,Grants and Subscriptions,Grants Payable,,26/09/2023,04/10/2023,4795.88,,Mind Monmouthshire
Schools Total,School Group 2 � Pupil Capacity 144-314,MCC Schools,Goytre Fawr Primary School,Premises,Ground Maintenance Costs,Grounds Maintenance - Direct.,,25/09/2023,04/10/2023,200,,Morris's Grounds Maintenance Ltd
Children Services,Children Services Teams,Social Care and Health,Long Term Support Team,Employees,Direct Employee Expenses,Agency Staff,,28/09/2023,09/10/2023,834.72,,NonStop Recruitment Ltd.
"Commercial, Corporate & landlord Services",Property Services & Facilities Management,Resources,Programmed Maintenance,Premises,"Repairs, Alterations & Maintenance of Buildings",Premises Repairs And Maintenance,,05/10/2023,09/10/2023,220.24,,Lorne Stewart  Plc
"Enterprise, Housing & Community Animation",General Fund Housing,Communities & Place,Homelessness,Premises,"Repairs, Alterations & Maintenance of Buildings",Security Of Premises.,,15/09/2023,12/10/2023,5196,,M J Events Support Ltd
Schools Total,School Group 2 � Pupil Capacity 144-314,MCC Schools,Our Lady & St Michael's (OLSM) RC Primary School (VA),Supplies & Services,Catering,Catering,,05/09/2023,12/10/2023,229.89,,Nisbets
"Enterprise, Housing & Community Animation",General Fund Housing,Communities & Place,Homelessness,Supplies & Services,Services,Homelessness Bed & Breakfast Accomodation,,05/10/2023,12/10/2023,291.69,,Raglan Lodge
"Enterprise, Housing & Community Animation",General Fund Housing,Communities & Place,Homelessness,Supplies & Services,Services,Homelessness Bed & Breakfast Accomodation,,05/10/2023,12/10/2023,291.69,,Raglan Lodge
"Enterprise, Housing & Community Animation",General Fund Housing,Communities & Place,Homelessness,Supplies & Services,Services,Homelessness Bed & Breakfast Accomodation,,11/09/2023,12/10/2023,1120,,REDACTED PERSONAL DATA
"Enterprise, Housing & Community Animation",General Fund Housing,Communities & Place,Homelessness,Supplies & Services,Services,Homelessness Bed & Breakfast Accomodation,,05/10/2023,12/10/2023,291.69,,Raglan Lodge
"Enterprise, Housing & Community Animation",General Fund Housing,Communities & Place,Homelessness,Supplies & Services,Services,Homelessness Bed & Breakfast Accomodation,,05/10/2023,12/10/2023,291.69,,Raglan Lodge
"Enterprise, Housing & Community Animation",General Fund Housing,Communities & Place,Homelessness,Supplies & Services,Services,Homelessness Bed & Breakfast Accomodation,,02/10/2023,12/10/2023,553,,Stepping Stone Newport Ltd
Children Services,Children Services Teams,Social Care and Health,Going Home Staying Home Team,Employees,Direct Employee Expenses,Agency Staff,,20/10/2023,31/10/2023,874.4,,Hoop
Children Services,Children Services Teams,Social Care and Health,Long Term Support Team,Employees,Direct Employee Expenses,Agency Staff,,22/09/2023,31/10/2023,910.31,,Hoop
Democratic Services,Democratic Services,People & Governance,Members Costs,Supplies & Services,"Equipment, Furniture and Materials",Civic Events & Activities,,17/10/2023,20/10/2023,350,,Royal British Legion Poppy Appeal
Democratic Services,Democratic Services,People & Governance,Electoral Registration,Supplies & Services,Grants and Subscriptions,Subscriptions,,06/10/2023,11/10/2023,171,,Association of Electoral Administrators
"Enterprise, Housing & Community Animation",General Fund Housing,Communities & Place,Monmouthshire Letting Service,Supplies & Services,"Equipment, Furniture and Materials",Advertising,,25/10/2023,30/10/2023,125,,The Property Drop
"Enterprise, Housing & Community Animation",General Fund Housing,Communities & Place,Homelessness,Supplies & Services,Services,Homelessness Bed & Breakfast Accomodation,,23/10/2023,30/10/2023,553,,Stepping Stone Newport Ltd
"Enterprise, Housing & Community Animation",General Fund Housing,Communities & Place,Homelessness,Supplies & Services,Services,Homelessness Bed & Breakfast Accomodation,,24/10/2023,30/10/2023,291.69,,Raglan Lodge
"Enterprise, Housing & Community Animation",General Fund Housing,Communities & Place,Homelessness,Supplies & Services,Services,Homelessness Bed & Breakfast Accomodation,,12/10/2023,20/10/2023,4480,,Cherryberry Lodges
Schools Total,SCHGRP3 � School Group 3 � Pupil Capacity 315-500,MCC Schools,The Dell Primary School,Supplies & Services,Grants and Subscriptions,Subscriptions,,27/09/2023,10/10/2023,250,,Languagenut Ltd
Children Services,Children Services Teams,Social Care and Health,Long Term Support Team,Employees,Direct Employee Expenses,Agency Staff,,03/10/2023,09/10/2023,1632.44,,NonStop Recruitment Ltd.
Finance & Business Devlopment,Attractions,MonLife Directorate,Caldicot Castle & Country Park,Supplies & Services,Communications and Computing,Postages,,25/10/2023,31/10/2023,4.16,,Amazon Payments UK Limited
"Commercial, Corporate & landlord Services",Property Services & Facilities Management,Resources,Programmed Maintenance,Premises,"Repairs, Alterations & Maintenance of Buildings",Premises Repairs And Maintenance,,25/08/2023,20/10/2023,120.56,,Fire Safety Direct
"Commercial, Corporate & landlord Services",Property Services & Facilities Management,Resources,Programmed Maintenance,Premises,"Repairs, Alterations & Maintenance of Buildings",Premises Repairs And Maintenance,,25/08/2023,20/10/2023,76.88,,Fire Safety Direct
Children Services,Children Services Teams,Social Care and Health,Children's Services Man/Support,Employees,Direct Employee Expenses,Agency Staff,,15/10/2023,20/10/2023,144,,REDACTED PERSONAL DATA
"Commercial, Corporate & landlord Services",Property Services & Facilities Management,Resources,Programmed Maintenance,Premises,"Repairs, Alterations & Maintenance of Buildings",Premises Repairs And Maintenance,,18/09/2023,30/10/2023,175,,Fire Safety Direct
"Commercial, Corporate & landlord Services",Property Services & Facilities Management,Resources,Programmed Maintenance,Premises,"Repairs, Alterations & Maintenance of Buildings",Premises Repairs And Maintenance,,18/09/2023,30/10/2023,175,,Fire Safety Direct
"Commercial, Corporate & landlord Services",Property Services & Facilities Management,Resources,Programmed Maintenance,Premises,"Repairs, Alterations & Maintenance of Buildings",Premises Repairs And Maintenance,,19/09/2023,30/10/2023,175,,Fire Safety Direct
"Commercial, Corporate & landlord Services",Property Services & Facilities Management,Resources,Programmed Maintenance,Premises,"Repairs, Alterations & Maintenance of Buildings",Premises Repairs And Maintenance,,09/08/2023,20/10/2023,6.9,,Fire Safety Direct
"Enterprise, Housing & Community Animation",General Fund Housing,Communities & Place,Homelessness,Premises,"Repairs, Alterations & Maintenance of Buildings",Security Of Premises.,,17/10/2023,20/10/2023,5819.52,,M J Events Support Ltd
Adult Services,Community Care Team,Social Care and Health,Mental Health Care Team,Supplies & Services,Communications and Computing,IT Hardware,,26/06/2023,20/10/2023,3838.99,,Dyslexia Box
Schools Total,School Group 7 � Pupil Capacity 501-1800,MCC Schools,Chepstow School,Supplies & Services,Communications and Computing,IT Hardware,,21/09/2023,20/10/2023,43.91,,Amazon Payments UK Limited
Schools Total,School Group 7 � Pupil Capacity 501-1800,MCC Schools,Chepstow School,Supplies & Services,Communications and Computing,IT Hardware,,06/10/2023,30/10/2023,28.32,,Amazon Payments UK Limited
Schools Total,School Group 7 � Pupil Capacity 501-1800,MCC Schools,Monmouth Comprehensive,Supplies & Services,Communications and Computing,IT Hardware,,24/10/2023,30/10/2023,54.02,,Amazon Payments UK Limited
Schools Total,School Group 7 � Pupil Capacity 501-1800,MCC Schools,Monmouth Comprehensive,Supplies & Services,Communications and Computing,IT Hardware,,24/10/2023,30/10/2023,54.02,,Amazon Payments UK Limited
Schools Total,School Group 7 � Pupil Capacity 501-1800,MCC Schools,Monmouth Comprehensive,Supplies & Services,Services,Bank Charges,,23/10/2023,30/10/2023,11.55,,REDACTED DATA
"Enterprise, Housing & Community Animation",General Fund Housing,Communities & Place,Homelessness,Premises,"Repairs, Alterations & Maintenance of Buildings",Security Of Premises.,,19/09/2023,12/10/2023,5819.52,,M J Events Support Ltd
"Enterprise, Housing & Community Animation",General Fund Housing,Communities & Place,Homelessness,Premises,"Repairs, Alterations & Maintenance of Buildings",Security Of Premises.,,19/09/2023,12/10/2023,4000.92,,M J Events Support Ltd
"Enterprise, Housing & Community Animation",General Fund Housing,Communities & Place,Emergency Accommodation Hostel,Premises,"Repairs, Alterations & Maintenance of Buildings",Security Of Premises.,,19/09/2023,12/10/2023,2909.76,,M J Events Support Ltd
"Enterprise, Housing & Community Animation",General Fund Housing,Communities & Place,Homelessness,Supplies & Services,Services,Homelessness Bed & Breakfast Accomodation,,26/09/2023,12/10/2023,1120,,The Mayhill Hotel
"Enterprise, Housing & Community Animation",General Fund Housing,Communities & Place,Homelessness,Supplies & Services,Services,Homelessness Bed & Breakfast Accomodation,,20/09/2023,12/10/2023,291.69,,Raglan Lodge
Finance & Business Devlopment,Borough Theatre,MonLife Directorate,Borough Theatre General,Supplies & Services,"Equipment, Furniture and Materials",Promotions And Exhibitions,,12/09/2023,12/10/2023,2602.99,,Fox James Productions Ltd
"Commercial, Corporate & landlord Services",Property Services & Facilities Management,Resources,Programmed Maintenance,Premises,"Repairs, Alterations & Maintenance of Buildings",Premises Repairs And Maintenance,,05/10/2023,09/10/2023,55.06,,Lorne Stewart  Plc
"Commercial, Corporate & landlord Services",Property Services & Facilities Management,Resources,Programmed Maintenance,Premises,"Repairs, Alterations & Maintenance of Buildings",Premises Repairs And Maintenance,,05/10/2023,09/10/2023,588.06,,Lorne Stewart  Plc
"Commercial, Corporate & landlord Services",Property Services & Facilities Management,Resources,Programmed Maintenance,Premises,"Repairs, Alterations & Maintenance of Buildings",Premises Repairs And Maintenance,,05/10/2023,09/10/2023,588.06,,Lorne Stewart  Plc
"Commercial, Corporate & landlord Services",Property Services & Facilities Management,Resources,Programmed Maintenance,Premises,"Repairs, Alterations & Maintenance of Buildings",Premises Repairs And Maintenance,,05/10/2023,09/10/2023,588.06,,Lorne Stewart  Plc
"Commercial, Corporate & landlord Services",Property Services & Facilities Management,Resources,Programmed Maintenance,Premises,"Repairs, Alterations & Maintenance of Buildings",Premises Repairs And Maintenance,,05/10/2023,09/10/2023,588.06,,Lorne Stewart  Plc
"Commercial, Corporate & landlord Services",Property Services & Facilities Management,Resources,Programmed Maintenance,Premises,"Repairs, Alterations & Maintenance of Buildings",Premises Repairs And Maintenance,,05/10/2023,09/10/2023,588.06,,Lorne Stewart  Plc
"Commercial, Corporate & landlord Services",Property Services & Facilities Management,Resources,Programmed Maintenance,Premises,"Repairs, Alterations & Maintenance of Buildings",Premises Repairs And Maintenance,,05/10/2023,09/10/2023,588.06,,Lorne Stewart  Plc
"Commercial, Corporate & landlord Services",Property Services & Facilities Management,Resources,Programmed Maintenance,Premises,"Repairs, Alterations & Maintenance of Buildings",Premises Repairs And Maintenance,,05/10/2023,09/10/2023,588.06,,Lorne Stewart  Plc
"Commercial, Corporate & landlord Services",Property Services & Facilities Management,Resources,Programmed Maintenance,Premises,"Repairs, Alterations & Maintenance of Buildings",Premises Repairs And Maintenance,,05/10/2023,09/10/2023,588.06,,Lorne Stewart  Plc
"Enterprise, Housing & Community Animation",General Fund Housing,Communities & Place,Homelessness,Premises,"Repairs, Alterations & Maintenance of Buildings",Security Of Premises.,,17/10/2023,20/10/2023,4000.92,,M J Events Support Ltd
Schools Total,School Group 7 � Pupil Capacity 501-1800,MCC Schools,Chepstow School,Supplies & Services,Communications and Computing,IT Hardware,,22/09/2023,20/10/2023,103.45,,Amazon Payments UK Limited
Schools Total,School Group 7 � Pupil Capacity 501-1800,MCC Schools,Chepstow School,Supplies & Services,Communications and Computing,IT Hardware,,21/09/2023,20/10/2023,28.32,,Amazon Payments UK Limited
"Leisure, Youth & Outdoor Adventure",Leisure Services,MonLife Directorate,Chepstow Leisure Centre,Supplies & Services,Catering,Catering,,15/09/2023,20/10/2023,315,,BRAKES
"Leisure, Youth & Outdoor Adventure",Leisure Services,MonLife Directorate,Chepstow Leisure Centre,Supplies & Services,Catering,Catering,,15/09/2023,20/10/2023,-84.5,,BRAKES
"Leisure, Youth & Outdoor Adventure",Leisure Services,MonLife Directorate,Chepstow Leisure Centre,Supplies & Services,Catering,Catering,,15/09/2023,20/10/2023,84.5,,BRAKES
Schools Total,School Group 7 � Pupil Capacity 501-1800,MCC Schools,Monmouth Comprehensive,Premises,Energy Costs,Electricity.,,02/10/2023,25/10/2023,24089.59,,EDF Energy
Schools Total,School Group 1 � Pupil Capacity 1-143,MCC Schools,Llandogo Primary School,Premises,Energy Costs,Electricity.,,02/10/2023,25/10/2023,1160.13,,EDF Energy
Schools Total,School Group 1 � Pupil Capacity 1-143,MCC Schools,Llandogo Primary School,Premises,Energy Costs,Electricity.,,02/10/2023,25/10/2023,2.84,,EDF Energy
Schools Total,School Group 1 � Pupil Capacity 1-143,MCC Schools,Llanvihangel Crucorney Primary School,Premises,Energy Costs,Electricity.,,02/10/2023,25/10/2023,1.14,,EDF Energy
Schools Total,School Group 1 � Pupil Capacity 1-143,MCC Schools,Llanvihangel Crucorney Primary School,Premises,Energy Costs,Electricity.,,02/10/2023,25/10/2023,136.61,,EDF Energy
Neighbourhood Services,Waste and Street Services,Communities & Place,Refuse & Cleansing Operations,Supplies & Services,Communications and Computing,Computer Licences,,28/03/2023,24/10/2023,420,,Webaspx Limited
Children Services,Children Services Teams,Social Care and Health,Family Support and Protection Team � North,Employees,Direct Employee Expenses,Agency Staff,,18/10/2023,20/10/2023,1868.15,,Liquid Personnel
Finance & Business Devlopment,Cultural Services,MonLife Directorate,Grants,Supplies & Services,Grants and Subscriptions,Grants Payable,,19/10/2023,27/10/2023,12987.19,,Chepstow Athletic Club
Schools Total,School Group 7 � Pupil Capacity 501-1800,MCC Schools,Chepstow School,Supplies & Services,Communications and Computing,IT Hardware,,13/10/2023,27/10/2023,4.16,,Amazon Payments UK Limited
People,Communications,People & Governance,Communications,Supplies & Services,Communications and Computing,Software Maintenance,,24/10/2023,27/10/2023,312.84,,Hosting UK Ltd
Schools Total,School Group 7 � Pupil Capacity 501-1800,MCC Schools,Caldicot School,Supplies & Services,Grants and Subscriptions,Subscriptions,,18/10/2023,27/10/2023,658,,Fronting the Challenge Project
Adult Services,Direct Care Residential,Social Care and Health,Severn View Residential,Employees,Direct Employee Expenses,Agency Staff,,13/10/2023,17/10/2023,-200.6,,Support Ethics Ltd
"Enterprise, Housing & Community Animation",General Fund Housing,Communities & Place,Homelessness,Supplies & Services,Services,Homelessness Bed & Breakfast Accomodation,,09/10/2023,18/10/2023,291.69,,Raglan Lodge
"Enterprise, Housing & Community Animation",General Fund Housing,Communities & Place,Homelessness,Supplies & Services,Services,Homelessness Bed & Breakfast Accomodation,,09/10/2023,18/10/2023,291.69,,Raglan Lodge
"Enterprise, Housing & Community Animation",General Fund Housing,Communities & Place,Homelessness,Supplies & Services,Services,Homelessness Bed & Breakfast Accomodation,,09/10/2023,18/10/2023,291.69,,Raglan Lodge
"Enterprise, Housing & Community Animation",General Fund Housing,Communities & Place,Homelessness,Supplies & Services,Services,Homelessness Bed & Breakfast Accomodation,,09/10/2023,18/10/2023,291.69,,Raglan Lodge
"Enterprise, Housing & Community Animation",General Fund Housing,Communities & Place,Homelessness,Supplies & Services,Services,Homelessness Bed & Breakfast Accomodation,,09/10/2023,18/10/2023,291.69,,Raglan Lodge
"Enterprise, Housing & Community Animation",General Fund Housing,Communities & Place,Homelessness,Supplies & Services,Services,Homelessness Bed & Breakfast Accomodation,,09/10/2023,18/10/2023,291.69,,Raglan Lodge
"Enterprise, Housing & Community Animation",General Fund Housing,Communities & Place,Homelessness,Supplies & Services,Services,Homelessness Bed & Breakfast Accomodation,,09/10/2023,18/10/2023,291.69,,Raglan Lodge
"Enterprise, Housing & Community Animation",General Fund Housing,Communities & Place,Homelessness,Supplies & Services,Services,Homelessness Bed & Breakfast Accomodation,,09/10/2023,12/10/2023,291.69,,Raglan Lodge
"Enterprise, Housing & Community Animation",General Fund Housing,Communities & Place,Homelessness,Supplies & Services,Services,Homelessness Bed & Breakfast Accomodation,,20/09/2023,12/10/2023,291.69,,Raglan Lodge
"Enterprise, Housing & Community Animation",General Fund Housing,Communities & Place,Homelessness,Supplies & Services,Services,Homelessness Bed & Breakfast Accomodation,,20/09/2023,12/10/2023,291.69,,Raglan Lodge
"Enterprise, Housing & Community Animation",General Fund Housing,Communities & Place,Homelessness,Supplies & Services,Services,Homelessness Bed & Breakfast Accomodation,,20/09/2023,12/10/2023,291.69,,Raglan Lodge
"Enterprise, Housing & Community Animation",General Fund Housing,Communities & Place,Homelessness,Supplies & Services,Services,Homelessness Bed & Breakfast Accomodation,,20/09/2023,12/10/2023,291.69,,Raglan Lodge
Finance & Business Devlopment,Borough Theatre,MonLife Directorate,Borough Theatre General,Supplies & Services,"Equipment, Furniture and Materials",Promotions And Exhibitions,,09/10/2023,12/10/2023,2615.7,,Simon Fielder Productions
Resources,Support Services,Children & Young People,School & Student Access,Supplies & Services,Communications and Computing,Hardware Rental/ Maintenance.,,09/10/2023,12/10/2023,62.57,,SRS Public
"Leisure, Youth & Outdoor Adventure",Leisure Services,MonLife Directorate,Chepstow Leisure Centre,Supplies & Services,Catering,Catering,,29/09/2023,20/10/2023,258.53,,BRAKES
"Leisure, Youth & Outdoor Adventure",Leisure Services,MonLife Directorate,Chepstow Leisure Centre,Supplies & Services,Catering,Catering,,29/09/2023,20/10/2023,-61.6,,BRAKES
"Commercial, Corporate & landlord Services",Property Services & Facilities Management,Resources,Reactive Maintenance,Premises,"Repairs, Alterations & Maintenance of Buildings",Premises Repairs And Maintenance,,18/10/2023,20/10/2023,165,,Industrial Door Services
Children Services,Children Services Teams,Social Care and Health,Family Support and Protection Team � North,Employees,Direct Employee Expenses,Agency Staff,,28/09/2023,04/10/2023,95.02,,Leaders In Care
Schools Total,School Group 7 � Pupil Capacity 501-1800,MCC Schools,Caldicot School,Premises,"Repairs, Alterations & Maintenance of Buildings",Security Of Premises.,,05/10/2023,10/10/2023,25,,Newport Locksmiths Ltd
"Commercial, Corporate & landlord Services",Property Services & Facilities Management,Resources,Programmed Maintenance,Premises,"Repairs, Alterations & Maintenance of Buildings",Premises Repairs And Maintenance,,09/10/2023,10/10/2023,90,,Ambassador Fire & Security LTD
"Commercial, Corporate & landlord Services",Property Services & Facilities Management,Resources,Programmed Maintenance,Premises,"Repairs, Alterations & Maintenance of Buildings",Premises Repairs And Maintenance,,09/10/2023,10/10/2023,80,,Ambassador Fire & Security LTD
"Commercial, Corporate & landlord Services",Property Services & Facilities Management,Resources,Programmed Maintenance,Premises,"Repairs, Alterations & Maintenance of Buildings",Premises Repairs And Maintenance,,09/10/2023,10/10/2023,80,,Ambassador Fire & Security LTD
"Commercial, Corporate & landlord Services",Property Services & Facilities Management,Resources,External Clients,Premises,"Repairs, Alterations & Maintenance of Buildings",Premises Repairs And Maintenance,,09/10/2023,10/10/2023,80,,Ambassador Fire & Security LTD
Neighbourhood Services,Highways,Communities & Place,Overhead - Mon Highways,Supplies & Services,"Equipment, Furniture and Materials",Display Equipment,,#N/A,#N/A,15.4,,Arco Ltd
"Enterprise, Housing & Community Animation",General Fund Housing,Communities & Place,Emergency Accommodation Hostel,Premises,"Repairs, Alterations & Maintenance of Buildings",Security Of Premises.,,10/10/2023,18/10/2023,2909.76,,M J Events Support Ltd
"Enterprise, Housing & Community Animation",General Fund Housing,Communities & Place,Homelessness,Supplies & Services,Services,Homelessness Bed & Breakfast Accomodation,,09/10/2023,18/10/2023,291.69,,Raglan Lodge
"Enterprise, Housing & Community Animation",General Fund Housing,Communities & Place,Monmouthshire Letting Service,Supplies & Services,"Equipment, Furniture and Materials",Advertising,,01/08/2023,18/10/2023,144,,Focus Magazines Ltd
"Enterprise, Housing & Community Animation",General Fund Housing,Communities & Place,Monmouthshire Letting Service,Supplies & Services,"Equipment, Furniture and Materials",Advertising,,11/10/2023,18/10/2023,125,,The Property Drop
Finance & Business Devlopment,Attractions,MonLife Directorate,Old Station Tintern,Supplies & Services,Communications and Computing,IT Software,,10/10/2023,17/10/2023,44,,Ecr Concepts Ltd
Schools Total,School Group 7 � Pupil Capacity 501-1800,MCC Schools,Monmouth Comprehensive,Supplies & Services,"Equipment, Furniture and Materials",Advertising,,22/09/2023,04/10/2023,555,,Tindle Newspapers Wales & The Borders Ltd
"Enterprise, Housing & Community Animation",General Fund Housing,Communities & Place,Homelessness,Supplies & Services,Services,Homelessness Bed & Breakfast Accomodation,,20/09/2023,12/10/2023,291.69,,Raglan Lodge
"Enterprise, Housing & Community Animation",General Fund Housing,Communities & Place,Homelessness,Supplies & Services,Services,Homelessness Bed & Breakfast Accomodation,,20/09/2023,12/10/2023,291.69,,Raglan Lodge
"Enterprise, Housing & Community Animation",General Fund Housing,Communities & Place,Homelessness,Supplies & Services,Services,Homelessness Bed & Breakfast Accomodation,,29/09/2023,12/10/2023,291.69,,Raglan Lodge
"Enterprise, Housing & Community Animation",General Fund Housing,Communities & Place,Homelessness,Supplies & Services,Services,Homelessness Bed & Breakfast Accomodation,,20/09/2023,12/10/2023,291.69,,Raglan Lodge
"Enterprise, Housing & Community Animation",General Fund Housing,Communities & Place,Homelessness,Supplies & Services,Services,Homelessness Bed & Breakfast Accomodation,,18/09/2023,12/10/2023,1246,,Stepping Stone Newport Ltd
"Enterprise, Housing & Community Animation",General Fund Housing,Communities & Place,Homelessness,Supplies & Services,Services,Homelessness Bed & Breakfast Accomodation,,29/09/2023,12/10/2023,291.69,,Raglan Lodge
"Enterprise, Housing & Community Animation",General Fund Housing,Communities & Place,Homelessness,Supplies & Services,Services,Homelessness Bed & Breakfast Accomodation,,29/09/2023,12/10/2023,291.69,,Raglan Lodge
"Enterprise, Housing & Community Animation",General Fund Housing,Communities & Place,Homelessness,Supplies & Services,Services,Homelessness Bed & Breakfast Accomodation,,20/09/2023,12/10/2023,291.69,,Raglan Lodge
"Leisure, Youth & Outdoor Adventure",Leisure Services,MonLife Directorate,Chepstow Leisure Centre,Supplies & Services,Catering,Catering,,29/09/2023,20/10/2023,61.6,,BRAKES
"Commercial, Corporate & landlord Services",Property Services & Facilities Management,Resources,Magor Accommodation,Premises,"Repairs, Alterations & Maintenance of Buildings",Premises Repairs And Maintenance,,18/10/2023,20/10/2023,689.75,,Industrial Door Services
"Enterprise, Housing & Community Animation",General Fund Housing,Communities & Place,Homelessness,Supplies & Services,Services,Homelessness Bed & Breakfast Accomodation,,20/09/2023,12/10/2023,291.69,,Raglan Lodge
"Enterprise, Housing & Community Animation",General Fund Housing,Communities & Place,Homelessness,Supplies & Services,Services,Homelessness Bed & Breakfast Accomodation,,29/09/2023,12/10/2023,291.69,,Raglan Lodge
"Enterprise, Housing & Community Animation",General Fund Housing,Communities & Place,Homelessness,Supplies & Services,Services,Homelessness Bed & Breakfast Accomodation,,29/09/2023,12/10/2023,291.69,,Raglan Lodge
"Enterprise, Housing & Community Animation",General Fund Housing,Communities & Place,Homelessness,Supplies & Services,Services,Homelessness Bed & Breakfast Accomodation,,20/09/2023,12/10/2023,291.69,,Raglan Lodge
"Enterprise, Housing & Community Animation",General Fund Housing,Communities & Place,Homelessness,Supplies & Services,Services,Homelessness Bed & Breakfast Accomodation,,20/09/2023,12/10/2023,291.69,,Raglan Lodge
"Enterprise, Housing & Community Animation",General Fund Housing,Communities & Place,Homelessness,Supplies & Services,Services,Homelessness Bed & Breakfast Accomodation,,29/09/2023,12/10/2023,291.69,,Raglan Lodge
"Enterprise, Housing & Community Animation",General Fund Housing,Communities & Place,Homelessness,Supplies & Services,Services,Homelessness Bed & Breakfast Accomodation,,29/09/2023,12/10/2023,291.69,,Raglan Lodge
"Enterprise, Housing & Community Animation",General Fund Housing,Communities & Place,Homelessness,Supplies & Services,Services,Homelessness Bed & Breakfast Accomodation,,20/09/2023,12/10/2023,291.69,,Raglan Lodge
"Enterprise, Housing & Community Animation",General Fund Housing,Communities & Place,Homelessness,Supplies & Services,Services,Homelessness Bed & Breakfast Accomodation,,20/09/2023,12/10/2023,291.69,,Raglan Lodge
"Enterprise, Housing & Community Animation",General Fund Housing,Communities & Place,Homelessness,Supplies & Services,Services,Homelessness Bed & Breakfast Accomodation,,29/09/2023,12/10/2023,291.69,,Raglan Lodge
"Enterprise, Housing & Community Animation",General Fund Housing,Communities & Place,Homelessness,Supplies & Services,Services,Homelessness Bed & Breakfast Accomodation,,29/09/2023,12/10/2023,291.69,,Raglan Lodge
"Enterprise, Housing & Community Animation",General Fund Housing,Communities & Place,Homelessness,Supplies & Services,Services,Homelessness Bed & Breakfast Accomodation,,29/09/2023,12/10/2023,291.69,,Raglan Lodge
Children Services,Children Services Teams,Social Care and Health,Family Support and Protection Team � North,Employees,Direct Employee Expenses,Agency Staff,,27/08/2023,12/10/2023,5923.95,,Sanctuary Personnel
"Enterprise, Housing & Community Animation",General Fund Housing,Communities & Place,Homelessness,Premises,"Repairs, Alterations & Maintenance of Buildings",Security Of Premises.,,25/09/2023,12/10/2023,5819.52,,M J Events Support Ltd
"Enterprise, Housing & Community Animation",General Fund Housing,Communities & Place,Homelessness,Premises,"Repairs, Alterations & Maintenance of Buildings",Security Of Premises.,,25/09/2023,12/10/2023,4000.92,,M J Events Support Ltd
"Enterprise, Housing & Community Animation",General Fund Housing,Communities & Place,Emergency Accommodation Hostel,Premises,"Repairs, Alterations & Maintenance of Buildings",Security Of Premises.,,25/09/2023,12/10/2023,2909.76,,M J Events Support Ltd
"Enterprise, Housing & Community Animation",General Fund Housing,Communities & Place,Emergency Accommodation Hostel,Premises,"Repairs, Alterations & Maintenance of Buildings",Security Of Premises.,,02/10/2023,12/10/2023,2909.76,,M J Events Support Ltd
Schools Total,School Group 7 � Pupil Capacity 501-1800,MCC Schools,King Henry 3-19 School,Supplies & Services,Communications and Computing,Postages,,02/10/2023,09/10/2023,98.9,,Viking Direct Ltd
Schools Total,School Group 7 � Pupil Capacity 501-1800,MCC Schools,King Henry 3-19 School,Supplies & Services,Communications and Computing,Postages,,02/10/2023,09/10/2023,4.95,,Viking Direct Ltd
People,People Services,People & Governance,Payroll & System Support,Supplies & Services,Communications and Computing,Software Maintenance,,28/09/2023,09/10/2023,1437,,Zellis UK Limited
"Policy, Scrutiny & Customer Service",Community Hubs,Chief Executive's Unit,Strategic Management,Supplies & Services,Grants and Subscriptions,Subscriptions,,31/08/2023,09/10/2023,105.4,,British Library
"Policy, Scrutiny & Customer Service",Community Hubs,Chief Executive's Unit,Strategic Management,Supplies & Services,Grants and Subscriptions,Subscriptions,,31/08/2023,09/10/2023,-8.7,,British Library
"Policy, Scrutiny & Customer Service",Community Hubs,Chief Executive's Unit,Strategic Management,Supplies & Services,Grants and Subscriptions,Subscriptions,,31/08/2023,09/10/2023,8.7,,British Library
Schools Total,School Group 7 � Pupil Capacity 501-1800,MCC Schools,Chepstow School,Supplies & Services,Communications and Computing,IT Hardware,,24/09/2023,09/10/2023,6.64,,Amazon Payments UK Limited
"Facilities, Fleet & Decarbonisation",Home to School Transport Dept,Communities & Place,Home To School Transport,Supplies & Services,"Printing, Stationery and General Office Expenses",Administration,,02/08/2023,06/10/2023,1600,,Croner-i Ltd
Adult Services,Direct Care Residential,Social Care and Health,Severn View Residential,Employees,Direct Employee Expenses,Agency Staff,,27/09/2023,05/10/2023,282,,Support Ethics Ltd
Schools Total,School Group 2 � Pupil Capacity 144-314,MCC Schools,St Mary�s RC Primary School (VA),Premises,Ground Maintenance Costs,Grounds Maintenance - Direct.,,25/09/2023,05/10/2023,233.33,,Morris's Grounds Maintenance Ltd
Democratic Services,Democratic Services,People & Governance,County Community Elections,Supplies & Services,Communications and Computing,IT Software,,11/10/2023,11/10/2023,1320,,Bytes Software Services Ltd
"Leisure, Youth & Outdoor Adventure",Leisure Services,MonLife Directorate,Monmouth Leisure Centre,Supplies & Services,Catering,Catering,,17/10/2023,19/10/2023,-7.1,,Castell Howell Foods Ltd
"Commercial, Corporate & landlord Services",Property Services & Facilities Management,Resources,Programmed Maintenance,Premises,"Repairs, Alterations & Maintenance of Buildings",Premises Repairs And Maintenance,,05/10/2023,10/10/2023,82.59,,Lorne Stewart  Plc
"Commercial, Corporate & landlord Services",Property Services & Facilities Management,Resources,Programmed Maintenance,Premises,"Repairs, Alterations & Maintenance of Buildings",Premises Repairs And Maintenance,,05/10/2023,10/10/2023,137.66,,Lorne Stewart  Plc
"Commercial, Corporate & landlord Services",Property Services & Facilities Management,Resources,Programmed Maintenance,Premises,"Repairs, Alterations & Maintenance of Buildings",Premises Repairs And Maintenance,,05/10/2023,10/10/2023,96.36,,Lorne Stewart  Plc
"Commercial, Corporate & landlord Services",Property Services & Facilities Management,Resources,Programmed Maintenance,Premises,"Repairs, Alterations & Maintenance of Buildings",Premises Repairs And Maintenance,,05/10/2023,10/10/2023,151.42,,Lorne Stewart  Plc
Schools Total,School Group 7 � Pupil Capacity 501-1800,MCC Schools,Chepstow School,Supplies & Services,"Equipment, Furniture and Materials",Advertising,,01/10/2023,10/10/2023,150,,Monnow Voice Ltd
"Placemaking, Highways & Flooding",Highways Dev & Car Parks,Communities & Place,Transport Policy,Supplies & Services,Communications and Computing,IT Software,,29/09/2023,04/10/2023,677,,Metric Group Ltd
Schools Total,School Group 2 � Pupil Capacity 144-314,MCC Schools,Kymin View Primary School,Supplies & Services,Grants and Subscriptions,Subscriptions,,25/08/2023,04/10/2023,540,,SAAS
Schools Total,School Group 2 � Pupil Capacity 144-314,MCC Schools,Llanfoist Fawr Primary School,Premises,Ground Maintenance Costs,Grounds Maintenance - Direct.,,31/08/2023,04/10/2023,1.16,,Baileys DIY ltd Abergavenny
Adult Services,Direct Care Residential,Social Care and Health,Severn View Residential,Employees,Direct Employee Expenses,Agency Staff,,20/09/2023,04/10/2023,300.9,,Support Ethics Ltd
Finance & Business Devlopment,Museums,MonLife Directorate,Museums General,Supplies & Services,Communications and Computing,Postages,,31/05/2022,04/10/2023,10,,Star Editions
Schools Total,School Group 2 � Pupil Capacity 144-314,MCC Schools,Thornwell Primary School,Supplies & Services,Communications and Computing,Licences,,19/10/2023,26/10/2023,675,,TES Global Ltd
"Commercial, Corporate & landlord Services",Property Services & Facilities Management,Resources,Programmed Maintenance,Premises,"Repairs, Alterations & Maintenance of Buildings",Premises Repairs And Maintenance,,22/08/2023,04/10/2023,6.9,,Fire Safety Direct
"Commercial, Corporate & landlord Services",Property Services & Facilities Management,Resources,Programmed Maintenance,Premises,"Repairs, Alterations & Maintenance of Buildings",Premises Repairs And Maintenance,,22/08/2023,04/10/2023,61.72,,Fire Safety Direct
Adult Services,Direct Care Residential,Social Care and Health,Severn View Residential,Employees,Direct Employee Expenses,Agency Staff,,11/10/2023,17/10/2023,255.84,,Support Ethics Ltd
Adult Services,Direct Care Residential,Social Care and Health,Severn View Residential,Employees,Direct Employee Expenses,Agency Staff,,11/10/2023,17/10/2023,145.7,,Support Ethics Ltd
Adult Services,Direct Care Residential,Social Care and Health,Severn View Residential,Employees,Direct Employee Expenses,Agency Staff,,11/10/2023,17/10/2023,225.6,,Support Ethics Ltd
Schools Total,School Group 7 � Pupil Capacity 501-1800,MCC Schools,Monmouth Comprehensive,Premises,"Repairs, Alterations & Maintenance of Buildings",Security Of Premises.,,17/10/2023,27/10/2023,41,,Chamberlains Security
"Commercial, Corporate & landlord Services",Property Services & Facilities Management,Resources,Programmed Maintenance,Premises,"Repairs, Alterations & Maintenance of Buildings",Premises Repairs And Maintenance,,23/10/2023,27/10/2023,92.49,,Kone Plc
Schools Total,School Group 2 � Pupil Capacity 144-314,MCC Schools,Shirenewton Primary School,Supplies & Services,Services,Bank Charges,,18/09/2023,14/11/2023,-1044.3,,F R Ball Insurance Ltd
Schools Total,School Group 2 � Pupil Capacity 144-314,MCC Schools,St Mary�s RC Primary School (VA),Premises,Ground Maintenance Costs,Grounds Maintenance - Direct.,,24/10/2023,27/10/2023,233.33,,Morris's Grounds Maintenance Ltd
Schools Total,School Group 2 � Pupil Capacity 144-314,MCC Schools,Trellech Primary School,Premises,Ground Maintenance Costs,Grounds Maintenance - Direct.,,24/10/2023,27/10/2023,410,,Morris's Grounds Maintenance Ltd
"Commercial, Corporate & landlord Services",Property Services & Facilities Management,Resources,Programmed Maintenance,Premises,"Repairs, Alterations & Maintenance of Buildings",Premises Repairs And Maintenance,,29/09/2023,04/10/2023,840,,Industrial Door Services
"Leisure, Youth & Outdoor Adventure",Leisure Services,MonLife Directorate,Monmouth Leisure Centre,Supplies & Services,Catering,Catering,,16/10/2023,20/10/2023,286.22,,Castell Howell Foods Ltd
"Leisure, Youth & Outdoor Adventure",Leisure Services,MonLife Directorate,Monmouth Leisure Centre,Supplies & Services,Catering,Catering,,16/10/2023,20/10/2023,93.72,,Castell Howell Foods Ltd
"Leisure, Youth & Outdoor Adventure",Leisure Services,MonLife Directorate,Monmouth Leisure Centre,Supplies & Services,Catering,Catering,,16/10/2023,20/10/2023,-93.72,,Castell Howell Foods Ltd
Adult Services,Community Care Team,Social Care and Health,Mental Health Care Team,Employees,Direct Employee Expenses,Agency Staff,,18/10/2023,20/10/2023,1245.45,,Liquid Personnel
"Enterprise, Housing & Community Animation",General Fund Housing,Communities & Place,Emergency Accommodation Hostel,Premises,"Repairs, Alterations & Maintenance of Buildings",Security Of Premises.,,17/10/2023,20/10/2023,2909.76,,M J Events Support Ltd
Adult Services,INTEGRATED CARE FUND,Social Care and Health,Intermediate Care Fund,Employees,Direct Employee Expenses,Agency Staff,,06/09/2023,20/10/2023,1063.8,,Piers Meadows Recruitment Limited
Adult Services,INTEGRATED CARE FUND,Social Care and Health,Intermediate Care Fund,Employees,Direct Employee Expenses,Agency Staff,,06/09/2023,20/10/2023,37.5,,Piers Meadows Recruitment Limited
Adult Services,INTEGRATED CARE FUND,Social Care and Health,Intermediate Care Fund,Employees,Direct Employee Expenses,Agency Staff,,06/09/2023,20/10/2023,-37.5,,Piers Meadows Recruitment Limited
Adult Services,INTEGRATED CARE FUND,Social Care and Health,Intermediate Care Fund,Employees,Direct Employee Expenses,Agency Staff,,20/09/2023,20/10/2023,1586.23,,Liquid Personnel
Adult Services,INTEGRATED CARE FUND,Social Care and Health,Intermediate Care Fund,Employees,Direct Employee Expenses,Agency Staff,,20/09/2023,20/10/2023,-15.75,,Piers Meadows Recruitment Limited
Adult Services,INTEGRATED CARE FUND,Social Care and Health,Intermediate Care Fund,Employees,Direct Employee Expenses,Agency Staff,,20/09/2023,20/10/2023,15.75,,Piers Meadows Recruitment Limited
Adult Services,INTEGRATED CARE FUND,Social Care and Health,Intermediate Care Fund,Employees,Direct Employee Expenses,Agency Staff,,20/09/2023,20/10/2023,816.98,,Piers Meadows Recruitment Limited
Adult Services,INTEGRATED CARE FUND,Social Care and Health,Intermediate Care Fund,Employees,Direct Employee Expenses,Agency Staff,,27/09/2023,20/10/2023,1492.92,,Liquid Personnel
Adult Services,INTEGRATED CARE FUND,Social Care and Health,Intermediate Care Fund,Employees,Direct Employee Expenses,Agency Staff,,27/09/2023,20/10/2023,10.8,,Piers Meadows Recruitment Limited
Adult Services,INTEGRATED CARE FUND,Social Care and Health,Intermediate Care Fund,Employees,Direct Employee Expenses,Agency Staff,,27/09/2023,20/10/2023,-10.8,,Piers Meadows Recruitment Limited
Adult Services,INTEGRATED CARE FUND,Social Care and Health,Intermediate Care Fund,Employees,Direct Employee Expenses,Agency Staff,,27/09/2023,20/10/2023,812.03,,Piers Meadows Recruitment Limited
Adult Services,INTEGRATED CARE FUND,Social Care and Health,Intermediate Care Fund,Employees,Direct Employee Expenses,Agency Staff,,04/10/2023,20/10/2023,1595.66,,Liquid Personnel
Schools Total,SCHGRP3 � School Group 3 � Pupil Capacity 315-500,MCC Schools,Overmonnow Primary School,Supplies & Services,Communications and Computing,IT Hardware,,18/10/2023,20/10/2023,60,,Microsmith Electronics Ltd
Schools Total,SCHGRP3 � School Group 3 � Pupil Capacity 315-500,MCC Schools,Overmonnow Primary School,Supplies & Services,Communications and Computing,IT Hardware,,18/10/2023,20/10/2023,60,,Microsmith Electronics Ltd
Adult Services,INTEGRATED CARE FUND,Social Care and Health,Intermediate Care Fund,Supplies & Services,"Equipment, Furniture and Materials",Removal Costs,,21/09/2023,20/10/2023,120,,Haven Mobility
Standards,Inclusions,Children & Young People,Community Focused Schools Childcare Grant,Supplies & Services,Grants and Subscriptions,Grants Payable,,03/10/2023,05/10/2023,50,,Llandogo Early Years
Standards,Inclusions,Children & Young People,Community Focused Schools Childcare Grant,Supplies & Services,Grants and Subscriptions,Grants Payable,,03/10/2023,05/10/2023,50,,Shirenewton Playgroup
Schools Total,School Group 1 � Pupil Capacity 1-143,MCC Schools,Llanvihangel Crucorney Primary School,Supplies & Services,Grants and Subscriptions,Subscriptions,,18/07/2023,05/10/2023,450,,2Simple Software Ltd
Democratic Services,Democratic Services,People & Governance,County Community Elections,Supplies & Services,Communications and Computing,IT Software,,18/10/2023,19/10/2023,-1320,,Bytes Software Services Ltd
Democratic Services,Democratic Services,People & Governance,County Community Elections,Supplies & Services,Communications and Computing,IT Software,,18/10/2023,19/10/2023,-1320,,Bytes Software Services Ltd
Schools Total,School Group 2 � Pupil Capacity 144-314,MCC Schools,Thornwell Primary School,Supplies & Services,Communications and Computing,Licences,,19/10/2023,26/10/2023,120,,TES Global Ltd
Schools Total,School Group 7 � Pupil Capacity 501-1800,MCC Schools,King Henry 3-19 School,Premises,Ground Maintenance Costs,Grounds Maintenance - Direct.,,04/10/2023,27/10/2023,3000,,Thursday's Trust
Schools Total,School Group 2 � Pupil Capacity 144-314,MCC Schools,Archbishop Rowan Williams CiW Primary School (VA),Supplies & Services,Grants and Subscriptions,Subscriptions,,17/10/2023,27/10/2023,589,,Monmouth Diocesan Trust
Adult Services,Direct Care Residential,Social Care and Health,Severn View Residential,Employees,Direct Employee Expenses,Agency Staff,,04/10/2023,17/10/2023,742.8,,Support Ethics Ltd
Neighbourhood Services,Highways,Communities & Place,Traffic Management,Supplies & Services,"Equipment, Furniture and Materials",Display Equipment,,02/08/2023,27/10/2023,4320,,Griffiths Signs & Equipment Co.
"Placemaking, Highways & Flooding",Highways Dev & Car Parks,Communities & Place,Design & Commissioning,Supplies & Services,Communications and Computing,Software Annual,,09/10/2023,27/10/2023,1865,,Trimble Solutions (UK) Ltd
"Commercial, Corporate & landlord Services",Property Services & Facilities Management,Resources,Programmed Maintenance,Premises,"Repairs, Alterations & Maintenance of Buildings",Premises Repairs And Maintenance,,23/10/2023,27/10/2023,92.49,,Kone Plc
"Commercial, Corporate & landlord Services",Property Services & Facilities Management,Resources,Programmed Maintenance,Premises,"Repairs, Alterations & Maintenance of Buildings",Premises Repairs And Maintenance,,23/10/2023,27/10/2023,92.49,,Kone Plc
Schools Total,School Group 7 � Pupil Capacity 501-1800,MCC Schools,Monmouth Comprehensive,Supplies & Services,"Equipment, Furniture and Materials",Advertising,,10/10/2023,12/10/2023,262.5,,Jones Design Create Ltd
"Enterprise, Housing & Community Animation",General Fund Housing,Communities & Place,Homelessness,Supplies & Services,Services,Homelessness Bed & Breakfast Accomodation,,05/10/2023,12/10/2023,291.69,,Raglan Lodge
"Enterprise, Housing & Community Animation",General Fund Housing,Communities & Place,Homelessness,Supplies & Services,Services,Homelessness Bed & Breakfast Accomodation,,05/10/2023,12/10/2023,291.69,,Raglan Lodge
"Enterprise, Housing & Community Animation",General Fund Housing,Communities & Place,Homelessness,Supplies & Services,Services,Homelessness Bed & Breakfast Accomodation,,05/10/2023,12/10/2023,291.69,,Raglan Lodge
"Commercial, Corporate & landlord Services",Property Services & Facilities Management,Resources,Programmed Maintenance,Premises,"Repairs, Alterations & Maintenance of Buildings",Premises Repairs And Maintenance,,25/08/2023,06/10/2023,197.63,,EFS Systems (UK) Ltd
Standards,Inclusions,Children & Young People,Community Focused Schools Childcare Grant,Supplies & Services,Grants and Subscriptions,Grants Payable,,03/10/2023,06/10/2023,937.8,,Archbishop Rowan Williams After School Club
"Enterprise, Housing & Community Animation",General Fund Housing,Communities & Place,Homelessness,Supplies & Services,Services,Homelessness Bed & Breakfast Accomodation,,30/09/2023,06/10/2023,4050,,The Castle Inn
Schools Total,Schools,MCC Schools,Pupil Referral Unit,Supplies & Services,Communications and Computing,IT Software,,02/10/2023,06/10/2023,389.76,,Getech Ltd
"Enterprise, Housing & Community Animation",General Fund Housing,Communities & Place,Homelessness,Supplies & Services,Services,Homelessness Bed & Breakfast Accomodation,,26/09/2023,18/10/2023,1120,,The Mayhill Hotel
"Enterprise, Housing & Community Animation",General Fund Housing,Communities & Place,Homelessness,Supplies & Services,Services,Homelessness Bed & Breakfast Accomodation,,26/09/2023,18/10/2023,-224,,The Mayhill Hotel
"Enterprise, Housing & Community Animation",General Fund Housing,Communities & Place,Homelessness,Supplies & Services,Services,Homelessness Bed & Breakfast Accomodation,,26/09/2023,18/10/2023,224,,The Mayhill Hotel
"Enterprise, Housing & Community Animation",General Fund Housing,Communities & Place,Homelessness,Supplies & Services,Services,Homelessness Bed & Breakfast Accomodation,,26/09/2023,18/10/2023,1120,,The Mayhill Hotel
"Enterprise, Housing & Community Animation",General Fund Housing,Communities & Place,Homelessness,Supplies & Services,Services,Homelessness Bed & Breakfast Accomodation,,26/09/2023,18/10/2023,-224,,The Mayhill Hotel
"Enterprise, Housing & Community Animation",General Fund Housing,Communities & Place,Homelessness,Supplies & Services,Services,Homelessness Bed & Breakfast Accomodation,,26/09/2023,18/10/2023,224,,The Mayhill Hotel
"Leisure, Youth & Outdoor Adventure",Leisure Services,MonLife Directorate,Monmouth Leisure Centre,Supplies & Services,Communications and Computing,Licences,,28/09/2023,18/10/2023,20.99,,Swype
Schools Total,School Group 7 � Pupil Capacity 501-1800,MCC Schools,Caldicot School,Supplies & Services,Communications and Computing,Postages,,23/09/2023,05/10/2023,117.97,,Pitney Bowes Finance Plc
Schools Total,SCHGRP3 � School Group 3 � Pupil Capacity 315-500,MCC Schools,Overmonnow Primary School,Premises,Ground Maintenance Costs,Grounds Maintenance - Direct.,,25/09/2023,05/10/2023,300,,Morris's Grounds Maintenance Ltd
Schools Total,School Group 7 � Pupil Capacity 501-1800,MCC Schools,Caldicot School,Supplies & Services,Catering,Catering,,01/10/2023,05/10/2023,375,,Litmus Partnership Ltd
Schools Total,School Group 2 � Pupil Capacity 144-314,MCC Schools,Our Lady & St Michael's (OLSM) RC Primary School (VA),Supplies & Services,Catering,Catering,,21/09/2023,10/10/2023,33.98,,Nisbets
"Commercial, Corporate & landlord Services",Property Services & Facilities Management,Resources,Programmed Maintenance,Premises,"Repairs, Alterations & Maintenance of Buildings",Premises Repairs And Maintenance,,05/10/2023,10/10/2023,477.97,,Lorne Stewart  Plc
"Commercial, Corporate & landlord Services",Property Services & Facilities Management,Resources,Programmed Maintenance,Premises,"Repairs, Alterations & Maintenance of Buildings",Premises Repairs And Maintenance,,05/10/2023,10/10/2023,110.12,,Lorne Stewart  Plc
"Commercial, Corporate & landlord Services",Property Services & Facilities Management,Resources,Programmed Maintenance,Premises,"Repairs, Alterations & Maintenance of Buildings",Premises Repairs And Maintenance,,05/10/2023,10/10/2023,82.59,,Lorne Stewart  Plc
"Commercial, Corporate & landlord Services",Property Services & Facilities Management,Resources,Programmed Maintenance,Premises,"Repairs, Alterations & Maintenance of Buildings",Premises Repairs And Maintenance,,05/10/2023,10/10/2023,433.6,,Lorne Stewart  Plc
"Commercial, Corporate & landlord Services",Property Services & Facilities Management,Resources,Programmed Maintenance,Premises,"Repairs, Alterations & Maintenance of Buildings",Premises Repairs And Maintenance,,05/10/2023,10/10/2023,110.12,,Lorne Stewart  Plc
"Commercial, Corporate & landlord Services",Property Services & Facilities Management,Resources,Programmed Maintenance,Premises,"Repairs, Alterations & Maintenance of Buildings",Premises Repairs And Maintenance,,05/10/2023,10/10/2023,82.59,,Lorne Stewart  Plc
"Commercial, Corporate & landlord Services",Property Services & Facilities Management,Resources,Programmed Maintenance,Premises,"Repairs, Alterations & Maintenance of Buildings",Premises Repairs And Maintenance,,05/10/2023,10/10/2023,70.2,,Lorne Stewart  Plc
Schools Total,School Group 2 � Pupil Capacity 144-314,MCC Schools,Raglan CiW Primary School (VC),Supplies & Services,Communications and Computing,Licences,,10/10/2023,10/10/2023,2.07,,Education Shed
"Enterprise, Housing & Community Animation",General Fund Housing,Communities & Place,Homelessness,Supplies & Services,Services,Homelessness Bed & Breakfast Accomodation,,11/09/2023,18/10/2023,1040,,The Mayhill Hotel
"Enterprise, Housing & Community Animation",General Fund Housing,Communities & Place,Homelessness,Supplies & Services,Services,Homelessness Bed & Breakfast Accomodation,,11/09/2023,18/10/2023,208,,The Mayhill Hotel
"Enterprise, Housing & Community Animation",General Fund Housing,Communities & Place,Homelessness,Supplies & Services,Services,Homelessness Bed & Breakfast Accomodation,,11/09/2023,18/10/2023,-208,,The Mayhill Hotel
"Enterprise, Housing & Community Animation",General Fund Housing,Communities & Place,Homelessness,Supplies & Services,Services,Homelessness Bed & Breakfast Accomodation,,11/09/2023,18/10/2023,1120,,The Mayhill Hotel
"Enterprise, Housing & Community Animation",General Fund Housing,Communities & Place,Homelessness,Supplies & Services,Services,Homelessness Bed & Breakfast Accomodation,,11/09/2023,18/10/2023,224,,The Mayhill Hotel
"Enterprise, Housing & Community Animation",General Fund Housing,Communities & Place,Homelessness,Supplies & Services,Services,Homelessness Bed & Breakfast Accomodation,,11/09/2023,18/10/2023,-224,,The Mayhill Hotel
"Enterprise, Housing & Community Animation",General Fund Housing,Communities & Place,Homelessness,Supplies & Services,Services,Homelessness Bed & Breakfast Accomodation,,11/09/2023,18/10/2023,1120,,The Mayhill Hotel
"Enterprise, Housing & Community Animation",General Fund Housing,Communities & Place,Homelessness,Supplies & Services,Services,Homelessness Bed & Breakfast Accomodation,,11/09/2023,18/10/2023,224,,The Mayhill Hotel
Capital Division,Capital Dept,Capital,Capital Programme,Supplies & Services,Communications and Computing,Postages,,20/10/2023,27/10/2023,135,,Centrewire LTD
"Enterprise, Housing & Community Animation",General Fund Housing,Communities & Place,Homelessness,Premises,"Repairs, Alterations & Maintenance of Buildings",Security Of Premises.,,10/10/2023,18/10/2023,4000.92,,M J Events Support Ltd
"Enterprise, Housing & Community Animation",General Fund Housing,Communities & Place,Homelessness,Premises,"Repairs, Alterations & Maintenance of Buildings",Security Of Premises.,,10/10/2023,18/10/2023,5819.52,,M J Events Support Ltd
Schools Total,School Group 2 � Pupil Capacity 144-314,MCC Schools,Rogiet Primary School,Supplies & Services,Grants and Subscriptions,Subscriptions,,12/07/2023,17/10/2023,121.65,,KEP PRINT GROUP
Schools Total,School Group 7 � Pupil Capacity 501-1800,MCC Schools,Caldicot School,Premises,Energy Costs,Electricity.,,02/10/2023,25/10/2023,44.15,,EDF Energy
Schools Total,School Group 7 � Pupil Capacity 501-1800,MCC Schools,Caldicot School,Premises,Energy Costs,Electricity.,,02/10/2023,25/10/2023,22870.21,,EDF Energy
Schools Total,School Group 7 � Pupil Capacity 501-1800,MCC Schools,Monmouth Comprehensive,Premises,Energy Costs,Electricity.,,02/10/2023,25/10/2023,45.38,,EDF Energy
"Enterprise, Housing & Community Animation",General Fund Housing,Communities & Place,Monmouthshire Letting Service,Supplies & Services,"Equipment, Furniture and Materials",Advertising,,28/09/2023,12/10/2023,125,,The Property Drop
"Enterprise, Housing & Community Animation",General Fund Housing,Communities & Place,Homelessness,Supplies & Services,Services,Homelessness Bed & Breakfast Accomodation,,24/09/2023,12/10/2023,652,,Stepping Stone Newport Ltd
Schools Total,School Group 2 � Pupil Capacity 144-314,MCC Schools,Kymin View Primary School,Premises,Ground Maintenance Costs,Grounds Maintenance - Direct.,,25/09/2023,06/10/2023,300,,Morris's Grounds Maintenance Ltd
Schools Total,School Group 1 � Pupil Capacity 1-143,MCC Schools,Llandogo Primary School,Premises,Ground Maintenance Costs,Grounds Maintenance - Direct.,,25/09/2023,06/10/2023,300,,Morris's Grounds Maintenance Ltd
Standards,Inclusions,Children & Young People,Community Focused Schools Childcare Grant,Supplies & Services,Grants and Subscriptions,Grants Payable,,03/10/2023,05/10/2023,50,,Llangattock School Ltd
"Commercial, Corporate & landlord Services",Property Services & Facilities Management,Resources,Programmed Maintenance,Premises,"Repairs, Alterations & Maintenance of Buildings",Premises Repairs And Maintenance,,04/09/2023,05/10/2023,50,,D and C Utilities LTD
"Commercial, Corporate & landlord Services",Property Services & Facilities Management,Resources,Programmed Maintenance,Premises,"Repairs, Alterations & Maintenance of Buildings",Premises Repairs And Maintenance,,04/09/2023,05/10/2023,100,,D and C Utilities LTD
"Commercial, Corporate & landlord Services",Property Services & Facilities Management,Resources,Programmed Maintenance,Premises,"Repairs, Alterations & Maintenance of Buildings",Premises Repairs And Maintenance,,04/09/2023,05/10/2023,100,,D and C Utilities LTD
Adult Services,INTEGRATED CARE FUND,Social Care and Health,Intermediate Care Fund,Employees,Direct Employee Expenses,Agency Staff,,11/10/2023,20/10/2023,21.15,,Piers Meadows Recruitment Limited
Adult Services,INTEGRATED CARE FUND,Social Care and Health,Intermediate Care Fund,Employees,Direct Employee Expenses,Agency Staff,,11/10/2023,20/10/2023,-21.15,,Piers Meadows Recruitment Limited
Adult Services,INTEGRATED CARE FUND,Social Care and Health,Intermediate Care Fund,Employees,Direct Employee Expenses,Agency Staff,,11/10/2023,20/10/2023,822.38,,Piers Meadows Recruitment Limited
Adult Services,INTEGRATED CARE FUND,Social Care and Health,Intermediate Care Fund,Employees,Direct Employee Expenses,Agency Staff,,11/10/2023,20/10/2023,1544.76,,Liquid Personnel
Adult Services,INTEGRATED CARE FUND,Social Care and Health,Intermediate Care Fund,Employees,Direct Employee Expenses,Agency Staff,,11/10/2023,20/10/2023,1565.49,,Liquid Personnel
Adult Services,INTEGRATED CARE FUND,Social Care and Health,Intermediate Care Fund,Employees,Direct Employee Expenses,Agency Staff,,04/10/2023,20/10/2023,804.83,,Piers Meadows Recruitment Limited
Adult Services,INTEGRATED CARE FUND,Social Care and Health,Intermediate Care Fund,Employees,Direct Employee Expenses,Agency Staff,,04/10/2023,20/10/2023,3.6,,Piers Meadows Recruitment Limited
Adult Services,INTEGRATED CARE FUND,Social Care and Health,Intermediate Care Fund,Employees,Direct Employee Expenses,Agency Staff,,04/10/2023,20/10/2023,-3.6,,Piers Meadows Recruitment Limited
Schools Total,School Group 1 � Pupil Capacity 1-143,MCC Schools,Llanvihangel Crucorney Primary School,Premises,Energy Costs,Electricity.,,02/10/2023,25/10/2023,0.19,,EDF Energy
Schools Total,School Group 1 � Pupil Capacity 1-143,MCC Schools,Llanvihangel Crucorney Primary School,Premises,Energy Costs,Electricity.,,02/10/2023,25/10/2023,106.13,,EDF Energy
Democratic Services,Democratic Services,People & Governance,County Community Elections,Supplies & Services,Communications and Computing,IT Software,,18/10/2023,19/10/2023,1320,,Bytes Software Services Ltd
Schools Total,School Group 1 � Pupil Capacity 1-143,MCC Schools,Llanvihangel Crucorney Primary School,Premises,Energy Costs,Electricity.,,02/10/2023,25/10/2023,777.05,,EDF Energy
Schools Total,School Group 1 � Pupil Capacity 1-143,MCC Schools,Llanvihangel Crucorney Primary School,Premises,Energy Costs,Electricity.,,02/10/2023,25/10/2023,1.65,,EDF Energy
Schools Total,School Group 7 � Pupil Capacity 501-1800,MCC Schools,Caldicot School,Supplies & Services,Communications and Computing,Postages,,28/09/2023,06/10/2023,69.24,,Purchase Power
Schools Total,School Group 2 � Pupil Capacity 144-314,MCC Schools,Rogiet Primary School,Supplies & Services,Grants and Subscriptions,Subscriptions,,27/09/2023,06/10/2023,200,,White Rose Maths
Finance & Business Devlopment,Museums,MonLife Directorate,Museum Grants,Supplies & Services,"Equipment, Furniture and Materials",Marketing Materials,,07/09/2023,06/10/2023,1160,,Park Retail Lt ta Love2reward
Finance & Business Devlopment,Museums,MonLife Directorate,Museum Grants,Supplies & Services,"Equipment, Furniture and Materials",Marketing Materials,,07/09/2023,06/10/2023,10,,Park Retail Lt ta Love2reward
Finance & Business Devlopment,Museums,MonLife Directorate,Museum Grants,Supplies & Services,"Equipment, Furniture and Materials",Marketing Materials,,07/09/2023,06/10/2023,-10,,Park Retail Lt ta Love2reward
"Commercial, Corporate & landlord Services",Property Services & Facilities Management,Resources,Programmed Maintenance,Premises,"Repairs, Alterations & Maintenance of Buildings",Premises Repairs And Maintenance,,25/09/2023,05/10/2023,371.22,,Kone Plc
"Commercial, Corporate & landlord Services",Property Services & Facilities Management,Resources,Programmed Maintenance,Premises,"Repairs, Alterations & Maintenance of Buildings",Premises Repairs And Maintenance,,25/09/2023,05/10/2023,92.49,,Kone Plc
"Commercial, Corporate & landlord Services",Property Services & Facilities Management,Resources,Programmed Maintenance,Premises,"Repairs, Alterations & Maintenance of Buildings",Premises Repairs And Maintenance,,25/09/2023,05/10/2023,92.49,,Kone Plc
Schools Total,School Group 7 � Pupil Capacity 501-1800,MCC Schools,Chepstow School,Premises,Energy Costs,Electricity.,,02/10/2023,25/10/2023,10755.57,,EDF Energy
Schools Total,School Group 7 � Pupil Capacity 501-1800,MCC Schools,Chepstow School,Premises,Energy Costs,Electricity.,,02/10/2023,25/10/2023,21.9,,EDF Energy
Children Services,Children Services Teams,Social Care and Health,Family Support and Protection Team - South,Employees,Direct Employee Expenses,Agency Staff,,22/09/2023,23/10/2023,1366.69,,Hoop
Children Services,Children Services Teams,Social Care and Health,Family Support and Protection Team - South,Employees,Direct Employee Expenses,Agency Staff,,29/09/2023,23/10/2023,1740.56,,Hoop
Children Services,Children Services Teams,Social Care and Health,Family Support and Protection Team - South,Employees,Direct Employee Expenses,Agency Staff,,06/10/2023,23/10/2023,1729.31,,Hoop
Children Services,Children Services Teams,Social Care and Health,Long Term Support Team,Employees,Direct Employee Expenses,Agency Staff,,20/10/2023,23/10/2023,1524.58,,Hoop
Children Services,Children Services Teams,Social Care and Health,Family Support and Protection Team � North,Employees,Direct Employee Expenses,Agency Staff,,13/10/2023,23/10/2023,1065.6,,Hoop
Children Services,Children Services Teams,Social Care and Health,Family Support and Protection Team � North,Employees,Direct Employee Expenses,Agency Staff,,20/10/2023,23/10/2023,1052.1,,Hoop
"Facilities, Fleet & Decarbonisation",Regional Transport,Communities & Place,Bus Services Support Grant,Supplies & Services,Grants and Subscriptions,Grants Payable,,23/10/2023,23/10/2023,2638.59,,Accessible Caring Transport (ACT)
"Facilities, Fleet & Decarbonisation",Regional Transport,Communities & Place,Bus Services Support Grant,Supplies & Services,Grants and Subscriptions,Grants Payable,,23/10/2023,23/10/2023,2267.73,,Bridgend County Borough Council
"Facilities, Fleet & Decarbonisation",Regional Transport,Communities & Place,Bus Services Support Grant,Supplies & Services,Grants and Subscriptions,Grants Payable,,23/10/2023,23/10/2023,2682.41,,Bridgend Community Transport Ltd
"Facilities, Fleet & Decarbonisation",Regional Transport,Communities & Place,Bus Services Support Grant,Supplies & Services,Grants and Subscriptions,Grants Payable,,23/10/2023,23/10/2023,3967.85,,Caerphilly CBC
"Facilities, Fleet & Decarbonisation",Regional Transport,Communities & Place,Bus Services Support Grant,Supplies & Services,Grants and Subscriptions,Grants Payable,,23/10/2023,23/10/2023,978.46,,Caerphilly CBC
"Facilities, Fleet & Decarbonisation",Regional Transport,Communities & Place,Bus Services Support Grant,Supplies & Services,Grants and Subscriptions,Grants Payable,,23/10/2023,23/10/2023,142.69,,REDACTED PERSONAL DATA
"Facilities, Fleet & Decarbonisation",Regional Transport,Communities & Place,Bus Services Support Grant,Supplies & Services,Grants and Subscriptions,Grants Payable,,23/10/2023,23/10/2023,113.77,,East Vale Community Transport
"Facilities, Fleet & Decarbonisation",Regional Transport,Communities & Place,Bus Services Support Grant,Supplies & Services,Grants and Subscriptions,Grants Payable,,23/10/2023,23/10/2023,1564.87,,Newport City Council
"Facilities, Fleet & Decarbonisation",Regional Transport,Communities & Place,Bus Services Support Grant,Supplies & Services,Grants and Subscriptions,Grants Payable,,23/10/2023,23/10/2023,1963.92,,Torfaen Community Transport
"Facilities, Fleet & Decarbonisation",Regional Transport,Communities & Place,Bus Services Support Grant,Supplies & Services,Grants and Subscriptions,Grants Payable,,23/10/2023,23/10/2023,2825.05,,Travol Community Transport
"Facilities, Fleet & Decarbonisation",Regional Transport,Communities & Place,Bus Services Support Grant,Supplies & Services,Grants and Subscriptions,Grants Payable,,23/10/2023,23/10/2023,2163.65,,Vale Of Glamorgan Council
"Facilities, Fleet & Decarbonisation",Regional Transport,Communities & Place,Bus Services Support Grant,Supplies & Services,Grants and Subscriptions,Grants Payable,,23/10/2023,23/10/2023,779.62,,Voluntary Emergency Service Transport
"Facilities, Fleet & Decarbonisation",Regional Transport,Communities & Place,Bus Services Support Grant,Supplies & Services,Grants and Subscriptions,Grants Payable,,23/10/2023,23/10/2023,572.81,,Village and Valleys
Children Services,Children Services Teams,Social Care and Health,Family Support and Protection Team - South,Employees,Direct Employee Expenses,Agency Staff,,13/10/2023,23/10/2023,1706.81,,Hoop
Children Services,Children Services Teams,Social Care and Health,Family Support and Protection Team - South,Employees,Direct Employee Expenses,Agency Staff,,20/10/2023,23/10/2023,1722.11,,Hoop
Schools Total,School Group 7 � Pupil Capacity 501-1800,MCC Schools,Chepstow School,Supplies & Services,Grants and Subscriptions,Subscriptions,,21/04/2023,23/10/2023,95,,Gwent Schools Football Association
"Enterprise, Housing & Community Animation",Business Growth & Enterprise,Communities & Place,Multiply SPF,Supplies & Services,Communications and Computing,IT Hardware,,16/10/2023,23/10/2023,2410.3,,SRS Public
"Commercial, Corporate & landlord Services",Property Services & Facilities Management,Resources,Usk Accommodation,Premises,"Repairs, Alterations & Maintenance of Buildings",Premises Repairs And Maintenance,,02/10/2023,05/10/2023,100,,Ambassador Fire & Security LTD
"Commercial, Corporate & landlord Services",Property Services & Facilities Management,Resources,Usk Accommodation,Premises,"Repairs, Alterations & Maintenance of Buildings",Premises Repairs And Maintenance,,02/10/2023,05/10/2023,218,,Ambassador Fire & Security LTD
Schools Total,School Group 2 � Pupil Capacity 144-314,MCC Schools,Shirenewton Primary School,Premises,Energy Costs,Electricity.,,02/10/2023,25/10/2023,2205.79,,EDF Energy
Schools Total,School Group 2 � Pupil Capacity 144-314,MCC Schools,Shirenewton Primary School,Premises,Energy Costs,Electricity.,,02/10/2023,25/10/2023,2.71,,EDF Energy
"Facilities, Fleet & Decarbonisation",Regional Transport,Communities & Place,Bus Services Support Grant,Supplies & Services,Grants and Subscriptions,Grants Payable,,23/10/2023,23/10/2023,126678.22,,Cardiff Bus
"Facilities, Fleet & Decarbonisation",Regional Transport,Communities & Place,Bus Services Support Grant,Supplies & Services,Grants and Subscriptions,Grants Payable,,23/10/2023,23/10/2023,12927,,Edwards Coaches Ltd
"Facilities, Fleet & Decarbonisation",Regional Transport,Communities & Place,Bus Services Support Grant,Supplies & Services,Grants and Subscriptions,Grants Payable,,23/10/2023,23/10/2023,56231.91,,First Cymru Buses Ltd
"Facilities, Fleet & Decarbonisation",Regional Transport,Communities & Place,Bus Services Support Grant,Supplies & Services,Grants and Subscriptions,Grants Payable,,23/10/2023,23/10/2023,14872.75,,Harris Coaches
"Facilities, Fleet & Decarbonisation",Regional Transport,Communities & Place,Bus Services Support Grant,Supplies & Services,Grants and Subscriptions,Grants Payable,,23/10/2023,23/10/2023,811.94,,Henley's Bus Service Ltd
"Facilities, Fleet & Decarbonisation",Regional Transport,Communities & Place,Bus Services Support Grant,Supplies & Services,Grants and Subscriptions,Grants Payable,,23/10/2023,23/10/2023,1548.99,,Keepings Coaches
"Facilities, Fleet & Decarbonisation",Regional Transport,Communities & Place,Bus Services Support Grant,Supplies & Services,Grants and Subscriptions,Grants Payable,,23/10/2023,23/10/2023,114825.24,,New Adventure Travel
"Facilities, Fleet & Decarbonisation",Regional Transport,Communities & Place,Bus Services Support Grant,Supplies & Services,Grants and Subscriptions,Grants Payable,,23/10/2023,23/10/2023,47170.95,,Newport Transport Ltd
"Facilities, Fleet & Decarbonisation",Regional Transport,Communities & Place,Bus Services Support Grant,Supplies & Services,Grants and Subscriptions,Grants Payable,,23/10/2023,23/10/2023,17779.38,,Varteg Motors Ltd
"Facilities, Fleet & Decarbonisation",Regional Transport,Communities & Place,Bus Services Support Grant,Supplies & Services,Grants and Subscriptions,Grants Payable,,23/10/2023,23/10/2023,811.13,,Peyton Travel Ltd
"Facilities, Fleet & Decarbonisation",Regional Transport,Communities & Place,Bus Services Support Grant,Supplies & Services,Grants and Subscriptions,Grants Payable,,23/10/2023,23/10/2023,249218.14,,Stagecoach Services Ltd
"Facilities, Fleet & Decarbonisation",Regional Transport,Communities & Place,Bus Services Support Grant,Supplies & Services,Grants and Subscriptions,Grants Payable,,23/10/2023,23/10/2023,504.26,,Stagecoach Services Ltd
"Facilities, Fleet & Decarbonisation",Regional Transport,Communities & Place,Bus Services Support Grant,Supplies & Services,Grants and Subscriptions,Grants Payable,,23/10/2023,23/10/2023,2182.45,,Thomas of Rhondda
Schools Total,SCHGRP3 � School Group 3 � Pupil Capacity 315-500,MCC Schools,Overmonnow Primary School,Premises,Energy Costs,Electricity.,,02/10/2023,25/10/2023,1955.4,,EDF Energy
Schools Total,SCHGRP3 � School Group 3 � Pupil Capacity 315-500,MCC Schools,Overmonnow Primary School,Premises,Energy Costs,Electricity.,,02/10/2023,25/10/2023,0.92,,EDF Energy
Schools Total,School Group 2 � Pupil Capacity 144-314,MCC Schools,Goytre Fawr Primary School,Premises,Energy Costs,Electricity.,,02/10/2023,25/10/2023,1260.83,,EDF Energy
Schools Total,School Group 2 � Pupil Capacity 144-314,MCC Schools,Goytre Fawr Primary School,Premises,Energy Costs,Electricity.,,02/10/2023,25/10/2023,2.65,,EDF Energy
Schools Total,School Group 7 � Pupil Capacity 501-1800,MCC Schools,King Henry 3-19 School,Supplies & Services,Communications and Computing,Software Annual,,12/10/2023,25/10/2023,2227.97,,SRS Public
Children Services,Children Services Teams,Social Care and Health,Family Support and Protection Team � North,Employees,Direct Employee Expenses,Agency Staff,,11/10/2023,19/10/2023,1750.97,,Liquid Personnel
Schools Total,SCHGRP3 � School Group 3 � Pupil Capacity 315-500,MCC Schools,Overmonnow Primary School,Premises,Ground Maintenance Costs,Grounds Maintenance - Direct.,,24/10/2023,27/10/2023,300,,Morris's Grounds Maintenance Ltd
Democratic Services,Democratic Services,People & Governance,Electoral Management,Supplies & Services,Communications and Computing,Postages,,09/10/2023,26/10/2023,17.98,,Royal Mail
"Enterprise, Housing & Community Animation",General Fund Housing,Communities & Place,Homelessness,Supplies & Services,Services,Homelessness Bed & Breakfast Accomodation,,19/10/2023,26/10/2023,693,,The Park Hotel
"Enterprise, Housing & Community Animation",General Fund Housing,Communities & Place,Homelessness,Supplies & Services,Services,Homelessness Bed & Breakfast Accomodation,,11/09/2023,18/10/2023,-224,,The Mayhill Hotel
Schools Total,School Group 7 � Pupil Capacity 501-1800,MCC Schools,Monmouth Comprehensive,Supplies & Services,Communications and Computing,IT Software,,18/10/2023,26/10/2023,1526.65,,The Safeguarding Company Limited
"Enterprise, Housing & Community Animation",General Fund Housing,Communities & Place,Homelessness,Supplies & Services,Services,Homelessness Bed & Breakfast Accomodation,,11/09/2023,18/10/2023,1120,,The Mayhill Hotel
"Enterprise, Housing & Community Animation",General Fund Housing,Communities & Place,Homelessness,Supplies & Services,Services,Homelessness Bed & Breakfast Accomodation,,11/09/2023,18/10/2023,224,,The Mayhill Hotel
"Enterprise, Housing & Community Animation",General Fund Housing,Communities & Place,Homelessness,Supplies & Services,Services,Homelessness Bed & Breakfast Accomodation,,11/09/2023,18/10/2023,-224,,The Mayhill Hotel
"Enterprise, Housing & Community Animation",General Fund Housing,Communities & Place,Homelessness,Supplies & Services,Services,Homelessness Bed & Breakfast Accomodation,,26/09/2023,18/10/2023,1120,,The Mayhill Hotel
"Enterprise, Housing & Community Animation",General Fund Housing,Communities & Place,Homelessness,Supplies & Services,Services,Homelessness Bed & Breakfast Accomodation,,26/09/2023,18/10/2023,-224,,The Mayhill Hotel
"Enterprise, Housing & Community Animation",General Fund Housing,Communities & Place,Homelessness,Supplies & Services,Services,Homelessness Bed & Breakfast Accomodation,,26/09/2023,18/10/2023,224,,The Mayhill Hotel
"Leisure, Youth & Outdoor Adventure",Leisure Services,MonLife Directorate,Monmouth Leisure Centre,Supplies & Services,Catering,Catering,,03/10/2023,25/10/2023,413.04,,BRAKES
"Leisure, Youth & Outdoor Adventure",Leisure Services,MonLife Directorate,Monmouth Leisure Centre,Supplies & Services,Catering,Catering,,03/10/2023,25/10/2023,166.38,,BRAKES
"Leisure, Youth & Outdoor Adventure",Leisure Services,MonLife Directorate,Monmouth Leisure Centre,Supplies & Services,Catering,Catering,,03/10/2023,25/10/2023,-166.38,,BRAKES
Schools Total,School Group 2 � Pupil Capacity 144-314,MCC Schools,Castle Park Primary School,Supplies & Services,Grants and Subscriptions,Subscriptions,,10/10/2023,26/10/2023,450,,Hachette UK Distrubution Ltd
"Commercial, Corporate & landlord Services",Property Services & Facilities Management,Resources,External Clients,Premises,"Repairs, Alterations & Maintenance of Buildings",Premises Repairs And Maintenance,,21/09/2023,26/10/2023,252,,Newport City Council
Standards,Early Years,Children & Young People,Key Stage 1 Grant,Supplies & Services,Catering,Catering,,01/10/2023,25/10/2023,7530.48,,Raglan Dairy Ltd
Standards,Early Years,Children & Young People,Key Stage 1 Grant,Supplies & Services,Catering,Catering,,01/10/2023,25/10/2023,-0.8,,Raglan Dairy Ltd
"Placemaking, Highways & Flooding",Highways Dev & Car Parks,Communities & Place,Traffic & Road Safety,Supplies & Services,"Equipment, Furniture and Materials",Advertising,,20/10/2023,25/10/2023,420,,Tindle Newspapers Wales & The Borders Ltd
"Placemaking, Highways & Flooding",Highways Dev & Car Parks,Communities & Place,Traffic & Road Safety,Supplies & Services,"Equipment, Furniture and Materials",Advertising,,20/10/2023,25/10/2023,420,,Tindle Newspapers Wales & The Borders Ltd
"Placemaking, Highways & Flooding",Highways Dev & Car Parks,Communities & Place,Traffic & Road Safety,Supplies & Services,"Equipment, Furniture and Materials",Advertising,,20/10/2023,25/10/2023,420,,Tindle Newspapers Wales & The Borders Ltd
"Placemaking, Highways & Flooding",Highways Dev & Car Parks,Communities & Place,Traffic & Road Safety,Supplies & Services,"Equipment, Furniture and Materials",Advertising,,20/10/2023,25/10/2023,420,,Tindle Newspapers Wales & The Borders Ltd
"Placemaking, Highways & Flooding",Highways Dev & Car Parks,Communities & Place,Traffic & Road Safety,Supplies & Services,"Equipment, Furniture and Materials",Advertising,,20/10/2023,25/10/2023,420,,Tindle Newspapers Wales & The Borders Ltd
"Placemaking, Highways & Flooding",Highways Dev & Car Parks,Communities & Place,Traffic & Road Safety,Supplies & Services,"Equipment, Furniture and Materials",Advertising,,20/10/2023,25/10/2023,420,,Tindle Newspapers Wales & The Borders Ltd
"Placemaking, Highways & Flooding",Highways Dev & Car Parks,Communities & Place,Traffic & Road Safety,Supplies & Services,"Equipment, Furniture and Materials",Advertising,,20/10/2023,25/10/2023,420,,Tindle Newspapers Wales & The Borders Ltd
"Placemaking, Highways & Flooding",Highways Dev & Car Parks,Communities & Place,Traffic & Road Safety,Supplies & Services,"Equipment, Furniture and Materials",Advertising,,20/10/2023,25/10/2023,420,,Tindle Newspapers Wales & The Borders Ltd
"Placemaking, Highways & Flooding",Highways Dev & Car Parks,Communities & Place,Traffic & Road Safety,Supplies & Services,"Equipment, Furniture and Materials",Advertising,,20/10/2023,25/10/2023,420,,Tindle Newspapers Wales & The Borders Ltd
Schools Total,School Group 2 � Pupil Capacity 144-314,MCC Schools,Durand Primary School,Supplies & Services,Grants and Subscriptions,Subscriptions,,06/10/2023,25/10/2023,1233.7,,Twinkl.co.uk
Schools Total,School Group 2 � Pupil Capacity 144-314,MCC Schools,Durand Primary School,Supplies & Services,Grants and Subscriptions,Subscriptions,,06/10/2023,25/10/2023,-354.32,,Twinkl.co.uk
Schools Total,School Group 2 � Pupil Capacity 144-314,MCC Schools,Durand Primary School,Supplies & Services,Grants and Subscriptions,Subscriptions,,06/10/2023,25/10/2023,354.32,,Twinkl.co.uk
Schools Total,School Group 7 � Pupil Capacity 501-1800,MCC Schools,King Henry 3-19 School,Employees,Indirect Employee Expenses,Replacement,,09/10/2023,25/10/2023,208.17,,Apollo Teaching Services LTD
"Commercial, Corporate & landlord Services",Property Services & Facilities Management,Resources,Programmed Maintenance,Premises,"Repairs, Alterations & Maintenance of Buildings",Premises Repairs And Maintenance,,12/10/2023,23/10/2023,421.25,,Development Plus Limited
"Commercial, Corporate & landlord Services",Property Services & Facilities Management,Resources,Programmed Maintenance,Premises,"Repairs, Alterations & Maintenance of Buildings",Premises Repairs And Maintenance,,12/10/2023,23/10/2023,498.75,,Development Plus Limited
"Commercial, Corporate & landlord Services",Property Services & Facilities Management,Resources,Programmed Maintenance,Premises,"Repairs, Alterations & Maintenance of Buildings",Premises Repairs And Maintenance,,12/10/2023,23/10/2023,105,,Development Plus Limited
"Leisure, Youth & Outdoor Adventure",Leisure Services,MonLife Directorate,Monmouth Leisure Centre,Supplies & Services,Catering,Catering,,10/10/2023,23/10/2023,0.01,,Castell Howell Foods Ltd
Adult Services,INTEGRATED CARE FUND,Social Care and Health,Intermediate Care Fund,Employees,Direct Employee Expenses,Agency Staff,,18/10/2023,23/10/2023,819.23,,Piers Meadows Recruitment Limited
Schools Total,School Group 2 � Pupil Capacity 144-314,MCC Schools,Durand Primary School,Supplies & Services,Grants and Subscriptions,Subscriptions,,01/07/2023,23/10/2023,125,,Halo Support Ltd
"Leisure, Youth & Outdoor Adventure",Leisure Services,MonLife Directorate,Monmouth Leisure Centre,Supplies & Services,Catering,Catering,,13/10/2023,25/10/2023,14.89,,BRAKES
"Leisure, Youth & Outdoor Adventure",Leisure Services,MonLife Directorate,Monmouth Leisure Centre,Supplies & Services,Catering,Catering,,10/10/2023,23/10/2023,18.98,,Castell Howell Foods Ltd
"Leisure, Youth & Outdoor Adventure",Leisure Services,MonLife Directorate,Monmouth Leisure Centre,Supplies & Services,Catering,Catering,,11/10/2023,23/10/2023,40.18,,Castell Howell Foods Ltd
"Leisure, Youth & Outdoor Adventure",Leisure Services,MonLife Directorate,Monmouth Leisure Centre,Supplies & Services,Catering,Catering,,16/10/2023,23/10/2023,352.38,,Castell Howell Foods Ltd
"Leisure, Youth & Outdoor Adventure",Play,MonLife Directorate,Winter of Well Being Funding,Supplies & Services,Communications and Computing,Postages,,10/05/2023,16/10/2023,13.95,,4imprint Direct Ltd
Children Services,Children Services Teams,Social Care and Health,Long Term Support Team,Employees,Direct Employee Expenses,Agency Staff,,10/10/2023,16/10/2023,834.72,,NonStop Recruitment Ltd.
Schools Total,School Group 7 � Pupil Capacity 501-1800,MCC Schools,King Henry 3-19 School,Supplies & Services,Communications and Computing,Software Annual,,20/09/2023,16/10/2023,779,,TES Global Ltd
Schools Total,School Group 7 � Pupil Capacity 501-1800,MCC Schools,King Henry 3-19 School,Supplies & Services,Communications and Computing,Software Annual,,20/09/2023,16/10/2023,459,,TES Global Ltd
Finance & Business Devlopment,Learning,MonLife Directorate,Learning,Supplies & Services,Communications and Computing,Postages,,24/08/2023,16/10/2023,3.95,,TTS Group Ltd
Schools Total,School Group 2 � Pupil Capacity 144-314,MCC Schools,Llanfoist Fawr Primary School,Supplies & Services,Grants and Subscriptions,Subscriptions,,04/10/2023,16/10/2023,395,,International Links
Children Services,Children Services Teams,Social Care and Health,Long Term Support Team,Employees,Direct Employee Expenses,Agency Staff,,05/10/2023,16/10/2023,59,,NonStop Recruitment Ltd.
"Enterprise, Housing & Community Animation",General Fund Housing,Communities & Place,Homelessness,Supplies & Services,Services,Homelessness Bed & Breakfast Accomodation,,09/10/2023,16/10/2023,1120,,The Mayhill Hotel
Finance & Business Devlopment,Attractions,MonLife Directorate,Old Station Tintern,Supplies & Services,Communications and Computing,IT Software,,01/10/2023,09/10/2023,95,,Ecr Concepts Ltd
"Leisure, Youth & Outdoor Adventure",Leisure Services,MonLife Directorate,Monmouth Leisure Centre,Supplies & Services,Catering,Catering,,26/09/2023,09/10/2023,151.04,,BRAKES
"Leisure, Youth & Outdoor Adventure",Leisure Services,MonLife Directorate,Monmouth Leisure Centre,Supplies & Services,Catering,Catering,,26/09/2023,09/10/2023,79.26,,BRAKES
"Leisure, Youth & Outdoor Adventure",Leisure Services,MonLife Directorate,Monmouth Leisure Centre,Supplies & Services,Catering,Catering,,26/09/2023,09/10/2023,-79.26,,BRAKES
"Leisure, Youth & Outdoor Adventure",Leisure Services,MonLife Directorate,Monmouth Leisure Centre,Supplies & Services,Catering,Catering,,02/10/2023,09/10/2023,440.1,,Castell Howell Foods Ltd
"Leisure, Youth & Outdoor Adventure",Leisure Services,MonLife Directorate,Monmouth Leisure Centre,Supplies & Services,Catering,Catering,,02/10/2023,09/10/2023,170.45,,Castell Howell Foods Ltd
"Leisure, Youth & Outdoor Adventure",Leisure Services,MonLife Directorate,Monmouth Leisure Centre,Supplies & Services,Catering,Catering,,02/10/2023,09/10/2023,-170.45,,Castell Howell Foods Ltd
Adult Services,Community Care Team,Social Care and Health,Mental Health Care Team,Employees,Direct Employee Expenses,Agency Staff,,11/10/2023,16/10/2023,1249.5,,Liquid Personnel
Adult Services,Direct Care Residential,Social Care and Health,Severn View Residential,Employees,Direct Employee Expenses,Agency Staff,,11/10/2023,16/10/2023,141,,Support Ethics Ltd
Adult Services,Direct Care Residential,Social Care and Health,Severn View Residential,Employees,Direct Employee Expenses,Agency Staff,,11/10/2023,16/10/2023,169.2,,Support Ethics Ltd
Adult Services,Direct Care Residential,Social Care and Health,Severn View Residential,Employees,Direct Employee Expenses,Agency Staff,,11/10/2023,16/10/2023,298.38,,Support Ethics Ltd
Schools Total,School Group 2 � Pupil Capacity 144-314,MCC Schools,Ysgol Gymraeg Y Fenni,Supplies & Services,Communications and Computing,IT Hardware,,12/10/2023,16/10/2023,240,,Microsmith Electronics Ltd
Democratic Services,Democratic Services,People & Governance,Electoral Registration,Supplies & Services,Grants and Subscriptions,Subscriptions,,05/10/2023,16/10/2023,284.9,,Quadient UK Ltd
Adult Services,Direct Care Residential,Social Care and Health,Severn View Residential,Employees,Direct Employee Expenses,Agency Staff,,20/09/2023,05/10/2023,149.24,,Support Ethics Ltd
Adult Services,Direct Care Residential,Social Care and Health,Severn View Residential,Employees,Direct Employee Expenses,Agency Staff,,20/09/2023,05/10/2023,300.9,,Support Ethics Ltd
Adult Services,Direct Care Residential,Social Care and Health,Severn View Residential,Employees,Direct Employee Expenses,Agency Staff,,20/09/2023,05/10/2023,520.3,,Support Ethics Ltd
Adult Services,Direct Care Residential,Social Care and Health,Severn View Residential,Employees,Direct Employee Expenses,Agency Staff,,20/09/2023,05/10/2023,164.5,,Support Ethics Ltd
Schools Total,School Group 2 � Pupil Capacity 144-314,MCC Schools,Castle Park Primary School,Premises,Ground Maintenance Costs,Grounds Maintenance - Direct.,,24/10/2023,27/10/2023,355,,Morris's Grounds Maintenance Ltd
Schools Total,School Group 2 � Pupil Capacity 144-314,MCC Schools,Dewstow Primary School,Supplies & Services,Grants and Subscriptions,Subscriptions,,24/09/2023,25/10/2023,399,,Juniper Education Services Limited
Children Services,Children Services Teams,Social Care and Health,SCH Safeguarding Unit,Employees,Direct Employee Expenses,Agency Staff,,30/09/2023,27/10/2023,1815,,Cheka Safeguarding Services Limited
"Leisure, Youth & Outdoor Adventure",Leisure Services,MonLife Directorate,Chepstow Leisure Centre,Supplies & Services,Catering,Catering,,03/10/2023,27/10/2023,87.21,,BRAKES
"Leisure, Youth & Outdoor Adventure",Leisure Services,MonLife Directorate,Chepstow Leisure Centre,Supplies & Services,Catering,Catering,,03/10/2023,27/10/2023,-87.21,,BRAKES
"Leisure, Youth & Outdoor Adventure",Leisure Services,MonLife Directorate,Chepstow Leisure Centre,Supplies & Services,Catering,Catering,,03/10/2023,27/10/2023,227.75,,BRAKES
"Leisure, Youth & Outdoor Adventure",Leisure Services,MonLife Directorate,Chepstow Leisure Centre,Supplies & Services,Catering,Catering,,06/10/2023,27/10/2023,258.97,,BRAKES
"Leisure, Youth & Outdoor Adventure",Leisure Services,MonLife Directorate,Chepstow Leisure Centre,Supplies & Services,Catering,Catering,,06/10/2023,27/10/2023,56.1,,BRAKES
"Leisure, Youth & Outdoor Adventure",Leisure Services,MonLife Directorate,Chepstow Leisure Centre,Supplies & Services,Catering,Catering,,06/10/2023,27/10/2023,-56.1,,BRAKES
Schools Total,School Group 7 � Pupil Capacity 501-1800,MCC Schools,Chepstow School,Supplies & Services,Communications and Computing,IT Hardware,,28/09/2023,27/10/2023,8.32,,Amazon Payments UK Limited
Schools Total,School Group 1 � Pupil Capacity 1-143,MCC Schools,Ysgol Gymraeg Y Ffin,Supplies & Services,Grants and Subscriptions,Subscriptions,,20/10/2023,27/10/2023,1005,,TES Global Ltd
"Commercial, Corporate & landlord Services",Property Services & Facilities Management,Resources,Programmed Maintenance,Premises,"Repairs, Alterations & Maintenance of Buildings",Premises Repairs And Maintenance,,23/10/2023,25/10/2023,54.99,,Kone Plc
Schools Total,School Group 7 � Pupil Capacity 501-1800,MCC Schools,King Henry 3-19 School,Employees,Indirect Employee Expenses,Replacement,,17/10/2023,25/10/2023,1059.12,,TeacherActive
Schools Total,School Group 7 � Pupil Capacity 501-1800,MCC Schools,King Henry 3-19 School,Employees,Indirect Employee Expenses,Replacement,,16/10/2023,25/10/2023,416.34,,Apollo Teaching Services LTD
Schools Total,School Group 7 � Pupil Capacity 501-1800,MCC Schools,King Henry 3-19 School,Employees,Indirect Employee Expenses,Replacement,,16/10/2023,25/10/2023,624.51,,Apollo Teaching Services LTD
Schools Total,School Group 7 � Pupil Capacity 501-1800,MCC Schools,King Henry 3-19 School,Employees,Indirect Employee Expenses,Replacement,,16/10/2023,25/10/2023,113.93,,Apollo Teaching Services LTD
Schools Total,School Group 7 � Pupil Capacity 501-1800,MCC Schools,King Henry 3-19 School,Employees,Indirect Employee Expenses,Replacement,,16/10/2023,25/10/2023,113.93,,Apollo Teaching Services LTD
Schools Total,School Group 7 � Pupil Capacity 501-1800,MCC Schools,King Henry 3-19 School,Employees,Indirect Employee Expenses,Replacement,,16/10/2023,25/10/2023,208.17,,Apollo Teaching Services LTD
Schools Total,School Group 7 � Pupil Capacity 501-1800,MCC Schools,King Henry 3-19 School,Employees,Indirect Employee Expenses,Replacement,,11/10/2023,25/10/2023,645.05,,Teaching Personnel
Schools Total,School Group 7 � Pupil Capacity 501-1800,MCC Schools,King Henry 3-19 School,Employees,Indirect Employee Expenses,Replacement,,11/10/2023,25/10/2023,645.05,,Teaching Personnel
Schools Total,School Group 7 � Pupil Capacity 501-1800,MCC Schools,King Henry 3-19 School,Employees,Indirect Employee Expenses,Replacement,,11/10/2023,25/10/2023,645.05,,Teaching Personnel
Schools Total,School Group 7 � Pupil Capacity 501-1800,MCC Schools,King Henry 3-19 School,Employees,Indirect Employee Expenses,Replacement,,11/10/2023,25/10/2023,645.05,,Teaching Personnel
Schools Total,School Group 7 � Pupil Capacity 501-1800,MCC Schools,King Henry 3-19 School,Employees,Indirect Employee Expenses,Replacement,,11/10/2023,25/10/2023,652.98,,Suppleo Recruitment Ltd
Schools Total,School Group 7 � Pupil Capacity 501-1800,MCC Schools,King Henry 3-19 School,Employees,Indirect Employee Expenses,Replacement,,18/10/2023,25/10/2023,1129.65,,Hays Specialist Recruitment Ltd
Schools Total,School Group 7 � Pupil Capacity 501-1800,MCC Schools,King Henry 3-19 School,Employees,Indirect Employee Expenses,Replacement,,18/10/2023,25/10/2023,223,,Academics
Schools Total,School Group 7 � Pupil Capacity 501-1800,MCC Schools,King Henry 3-19 School,Employees,Indirect Employee Expenses,Replacement,,18/10/2023,25/10/2023,119.5,,Axcis Education Recruitment
Schools Total,School Group 7 � Pupil Capacity 501-1800,MCC Schools,King Henry 3-19 School,Employees,Indirect Employee Expenses,Replacement,,18/10/2023,25/10/2023,291.28,,Axcis Education Recruitment
Schools Total,School Group 7 � Pupil Capacity 501-1800,MCC Schools,King Henry 3-19 School,Employees,Indirect Employee Expenses,Replacement,,19/10/2023,25/10/2023,280,,Prospero Teaching
Schools Total,School Group 7 � Pupil Capacity 501-1800,MCC Schools,King Henry 3-19 School,Employees,Indirect Employee Expenses,Replacement,,20/10/2023,25/10/2023,214,,Hoop
"Commercial, Corporate & landlord Services",Property Services & Facilities Management,Resources,Programmed Maintenance,Premises,"Repairs, Alterations & Maintenance of Buildings",Premises Repairs And Maintenance,,23/10/2023,25/10/2023,278.73,,Kone Plc
"Commercial, Corporate & landlord Services",Property Services & Facilities Management,Resources,Programmed Maintenance,Premises,"Repairs, Alterations & Maintenance of Buildings",Premises Repairs And Maintenance,,23/10/2023,25/10/2023,278.73,,Kone Plc
"Commercial, Corporate & landlord Services",Property Services & Facilities Management,Resources,Programmed Maintenance,Premises,"Repairs, Alterations & Maintenance of Buildings",Premises Repairs And Maintenance,,23/10/2023,25/10/2023,463.71,,Kone Plc
"Commercial, Corporate & landlord Services",Property Services & Facilities Management,Resources,Programmed Maintenance,Premises,"Repairs, Alterations & Maintenance of Buildings",Premises Repairs And Maintenance,,23/10/2023,25/10/2023,278.73,,Kone Plc
"Commercial, Corporate & landlord Services",Property Services & Facilities Management,Resources,Programmed Maintenance,Premises,"Repairs, Alterations & Maintenance of Buildings",Premises Repairs And Maintenance,,23/10/2023,25/10/2023,278.73,,Kone Plc
"Commercial, Corporate & landlord Services",Property Services & Facilities Management,Resources,Programmed Maintenance,Premises,"Repairs, Alterations & Maintenance of Buildings",Premises Repairs And Maintenance,,23/10/2023,25/10/2023,278.73,,Kone Plc
"Policy, Scrutiny & Customer Service",Community Hubs,Chief Executive's Unit,Strategic Management,Supplies & Services,Communications and Computing,Software Maintenance,,28/09/2023,05/10/2023,4069.73,,Lorensbergs Ltd
Adult Services,Direct Care Residential,Social Care and Health,Severn View Residential,Employees,Direct Employee Expenses,Agency Staff,,20/09/2023,05/10/2023,234.52,,Support Ethics Ltd
Adult Services,Direct Care Residential,Social Care and Health,Severn View Residential,Employees,Direct Employee Expenses,Agency Staff,,27/09/2023,05/10/2023,122.2,,Support Ethics Ltd
Standards,Early Years,Children & Young People,Flying Start Grant,Supplies & Services,Catering,Catering,,01/10/2023,16/10/2023,22.4,,Peter Francis Dairyman Ltd
Children Services,Children Services Teams,Social Care and Health,Family Support and Protection Team � North,Employees,Direct Employee Expenses,Agency Staff,,24/09/2023,09/10/2023,7972.01,,Sanctuary Personnel
"Commercial, Corporate & landlord Services",Property Services & Facilities Management,Resources,Programmed Maintenance,Premises,"Repairs, Alterations & Maintenance of Buildings",Premises Repairs And Maintenance,,02/10/2023,05/10/2023,80,,Ambassador Fire & Security LTD
"Commercial, Corporate & landlord Services",Property Services & Facilities Management,Resources,Programmed Maintenance,Premises,"Repairs, Alterations & Maintenance of Buildings",Premises Repairs And Maintenance,,02/10/2023,05/10/2023,80,,Ambassador Fire & Security LTD
"Commercial, Corporate & landlord Services",Property Services & Facilities Management,Resources,Usk Accommodation,Premises,"Repairs, Alterations & Maintenance of Buildings",Premises Repairs And Maintenance,,02/10/2023,05/10/2023,80,,Ambassador Fire & Security LTD
"Enterprise, Housing & Community Animation",Business Growth & Enterprise,Communities & Place,Multiply SPF,Supplies & Services,Communications and Computing,IT Hardware,,25/10/2023,27/10/2023,29.99,,Amazon Payments UK Limited
"Leisure, Youth & Outdoor Adventure",Leisure Services,MonLife Directorate,Chepstow Leisure Centre,Supplies & Services,Catering,Catering,,10/10/2023,27/10/2023,31.64,,BRAKES
"Leisure, Youth & Outdoor Adventure",Leisure Services,MonLife Directorate,Chepstow Leisure Centre,Supplies & Services,Catering,Catering,,10/10/2023,27/10/2023,-31.64,,BRAKES
"Leisure, Youth & Outdoor Adventure",Leisure Services,MonLife Directorate,Chepstow Leisure Centre,Supplies & Services,Catering,Catering,,10/10/2023,27/10/2023,202.83,,BRAKES
"Leisure, Youth & Outdoor Adventure",Leisure Services,MonLife Directorate,Chepstow Leisure Centre,Supplies & Services,Catering,Catering,,17/10/2023,27/10/2023,-130.74,,BRAKES
"Leisure, Youth & Outdoor Adventure",Leisure Services,MonLife Directorate,Chepstow Leisure Centre,Supplies & Services,Catering,Catering,,17/10/2023,27/10/2023,352.04,,BRAKES
Schools Total,School Group 2 � Pupil Capacity 144-314,MCC Schools,Trellech Primary School,Supplies & Services,"Equipment, Furniture and Materials",Advertising,,22/09/2023,19/10/2023,157.5,,Tindle Newspapers Wales & The Borders Ltd
Schools Total,School Group 2 � Pupil Capacity 144-314,MCC Schools,Trellech Primary School,Supplies & Services,Communications and Computing,Software Annual,,26/09/2023,19/10/2023,244,,Oxford University Press
"Commercial, Corporate & landlord Services",Property Services & Facilities Management,Resources,Usk Accommodation,Premises,"Repairs, Alterations & Maintenance of Buildings",Premises Repairs And Maintenance,,02/10/2023,05/10/2023,80,,Ambassador Fire & Security LTD
"Commercial, Corporate & landlord Services",Property Services & Facilities Management,Resources,Usk Accommodation,Premises,"Repairs, Alterations & Maintenance of Buildings",Premises Repairs And Maintenance,,02/10/2023,05/10/2023,80,,Ambassador Fire & Security LTD
"Commercial, Corporate & landlord Services",Property Services & Facilities Management,Resources,External Clients,Premises,"Repairs, Alterations & Maintenance of Buildings",Premises Repairs And Maintenance,,22/09/2023,05/10/2023,308.75,,Dale Sauna Ltd
"Commercial, Corporate & landlord Services",Property Services & Facilities Management,Resources,External Clients,Premises,"Repairs, Alterations & Maintenance of Buildings",Premises Repairs And Maintenance,,26/09/2023,05/10/2023,443.75,,Dale Sauna Ltd
"Placemaking, Highways & Flooding",Highways Dev & Car Parks,Communities & Place,Transport Policy,Supplies & Services,Grants and Subscriptions,Subscriptions,,13/10/2023,16/10/2023,720,,British Parking Association
Adult Services,Direct Care Residential,Social Care and Health,Severn View Residential,Employees,Direct Employee Expenses,Agency Staff,,11/10/2023,19/10/2023,447.23,,Support Ethics Ltd
Adult Services,Direct Care Residential,Social Care and Health,Severn View Residential,Employees,Direct Employee Expenses,Agency Staff,,11/10/2023,19/10/2023,677.58,,Support Ethics Ltd
Schools Total,School Group 7 � Pupil Capacity 501-1800,MCC Schools,King Henry 3-19 School,Supplies & Services,"Equipment, Furniture and Materials",Advertising,,04/10/2023,20/10/2023,115,,REDACTED DATA
Schools Total,School Group 7 � Pupil Capacity 501-1800,MCC Schools,King Henry 3-19 School,Supplies & Services,"Equipment, Furniture and Materials",Advertising,,04/10/2023,20/10/2023,35.99,,REDACTED DATA
Information Communication Technology,Technology & Organisational Design,Resources,Digital Program Office,Supplies & Services,Communications and Computing,IT Software,,25/10/2023,27/10/2023,3354.7,,Torfaen County Borough Council
"Leisure, Youth & Outdoor Adventure",Leisure Services,MonLife Directorate,Chepstow Leisure Centre,Supplies & Services,Catering,Catering,,17/10/2023,27/10/2023,130.74,,BRAKES
Adult Services,INTEGRATED CARE FUND,Social Care and Health,Intermediate Care Fund,Supplies & Services,"Equipment, Furniture and Materials",Removal Costs,,27/10/2023,01/11/2023,120,,Haven Mobility
Children Services,Children Services Teams,Social Care and Health,Long Term Support Team,Employees,Direct Employee Expenses,Agency Staff,,17/10/2023,25/10/2023,564,,NonStop Recruitment Ltd.
Children Services,Children Services Teams,Social Care and Health,Long Term Support Team,Employees,Direct Employee Expenses,Agency Staff,,13/10/2023,25/10/2023,998.55,,Hoop
Children Services,Children Services Teams,Social Care and Health,Long Term Support Team,Employees,Direct Employee Expenses,Agency Staff,,20/10/2023,25/10/2023,984.15,,Hoop
Children Services,Children Services Teams,Social Care and Health,Long Term Support Team,Employees,Direct Employee Expenses,Agency Staff,,29/09/2023,25/10/2023,1362.61,,Hoop
Children Services,Children Services Teams,Social Care and Health,Long Term Support Team,Employees,Direct Employee Expenses,Agency Staff,,29/09/2023,25/10/2023,1016.18,,Hoop
Children Services,Children Services Teams,Social Care and Health,Long Term Support Team,Employees,Direct Employee Expenses,Agency Staff,,29/09/2023,25/10/2023,969.99,,Hoop
Children Services,Children Services Teams,Social Care and Health,Long Term Support Team,Employees,Direct Employee Expenses,Agency Staff,,20/10/2023,25/10/2023,1224.04,,Hoop
Children Services,Children Services Teams,Social Care and Health,Long Term Support Team,Employees,Direct Employee Expenses,Agency Staff,,29/09/2023,25/10/2023,981,,Hoop
Children Services,Children Services Teams,Social Care and Health,Long Term Support Team,Employees,Direct Employee Expenses,Agency Staff,,06/10/2023,25/10/2023,997.2,,Hoop
Children Services,Children Services Teams,Social Care and Health,Family Support and Protection Team � North,Employees,Direct Employee Expenses,Agency Staff,,19/10/2023,25/10/2023,778.43,,Leaders In Care
Children Services,Children Services Teams,Social Care and Health,Long Term Support Team,Employees,Direct Employee Expenses,Agency Staff,,04/10/2023,19/10/2023,1668.5,,Liquid Personnel
Finance & Business Devlopment,Borough Theatre,MonLife Directorate,Borough Theatre General,Supplies & Services,"Equipment, Furniture and Materials",Promotions And Exhibitions,,16/10/2023,19/10/2023,3867.32,,Sweeney Entertainments
Schools Total,School Group 7 � Pupil Capacity 501-1800,MCC Schools,Chepstow School,Supplies & Services,Communications and Computing,IT Hardware,,28/09/2023,19/10/2023,9.82,,Amazon Payments UK Limited
"Commercial, Corporate & landlord Services",Property Services & Facilities Management,Resources,Programmed Maintenance,Premises,"Repairs, Alterations & Maintenance of Buildings",Premises Repairs And Maintenance,,19/10/2023,24/10/2023,100,,D and C Utilities LTD
"Commercial, Corporate & landlord Services",Property Services & Facilities Management,Resources,Programmed Maintenance,Premises,"Repairs, Alterations & Maintenance of Buildings",Premises Repairs And Maintenance,,19/10/2023,24/10/2023,100,,D and C Utilities LTD
"Commercial, Corporate & landlord Services",Property Services & Facilities Management,Resources,Programmed Maintenance,Premises,"Repairs, Alterations & Maintenance of Buildings",Premises Repairs And Maintenance,,19/10/2023,24/10/2023,100,,D and C Utilities LTD
"Commercial, Corporate & landlord Services",Property Services & Facilities Management,Resources,Programmed Maintenance,Premises,"Repairs, Alterations & Maintenance of Buildings",Premises Repairs And Maintenance,,19/10/2023,24/10/2023,100,,D and C Utilities LTD
"Commercial, Corporate & landlord Services",Property Services & Facilities Management,Resources,Programmed Maintenance,Premises,"Repairs, Alterations & Maintenance of Buildings",Premises Repairs And Maintenance,,19/10/2023,24/10/2023,50,,D and C Utilities LTD
"Enterprise, Housing & Community Animation",General Fund Housing,Communities & Place,Homelessness,Supplies & Services,Services,Homelessness Bed & Breakfast Accomodation,,01/11/2023,26/10/2023,25500,,360 Ventures
Capital Division,Capital Dept,Capital,Capital Programme,Supplies & Services,Grants and Subscriptions,Grants Payable,,24/10/2023,26/10/2023,1740,,Kin Nature Kindergarten
Capital Division,Capital Dept,Capital,Capital Programme,Supplies & Services,Grants and Subscriptions,Grants Payable,,24/10/2023,26/10/2023,4700,,Busy Bodies at Trellech Playgroup
Finance & Business Devlopment,Borough Theatre,MonLife Directorate,Borough Theatre General,Supplies & Services,"Equipment, Furniture and Materials",Marketing General,,13/10/2023,24/10/2023,144.5,,Handprint Production Ltd T/A Pom
Finance & Business Devlopment,Borough Theatre,MonLife Directorate,Borough Theatre General,Supplies & Services,"Equipment, Furniture and Materials",Marketing General,,13/10/2023,24/10/2023,6.4,,Handprint Production Ltd T/A Pom
Schools Total,School Group 7 � Pupil Capacity 501-1800,MCC Schools,Chepstow School,Supplies & Services,Communications and Computing,IT Hardware,,22/09/2023,19/10/2023,49.92,,Amazon Payments UK Limited
"Commercial, Corporate & landlord Services",Property Services & Facilities Management,Resources,Programmed Maintenance,Premises,"Repairs, Alterations & Maintenance of Buildings",Premises Repairs And Maintenance,,19/10/2023,24/10/2023,50,,D and C Utilities LTD
Schools Total,School Group 7 � Pupil Capacity 501-1800,MCC Schools,King Henry 3-19 School,Supplies & Services,"Equipment, Furniture and Materials",Advertising,,04/10/2023,20/10/2023,238.74,,REDACTED DATA
"Commercial, Corporate & landlord Services",Property Services & Facilities Management,Resources,Programmed Maintenance,Premises,"Repairs, Alterations & Maintenance of Buildings",Premises Repairs And Maintenance,,05/10/2023,09/10/2023,253.8,,Lorne Stewart  Plc
Schools Total,School Group 7 � Pupil Capacity 501-1800,MCC Schools,Chepstow School,Supplies & Services,Communications and Computing,IT Hardware,,08/09/2023,09/10/2023,62.98,,Amazon Payments UK Limited
Schools Total,School Group 7 � Pupil Capacity 501-1800,MCC Schools,Chepstow School,Supplies & Services,Communications and Computing,IT Hardware,,02/10/2023,09/10/2023,140.32,,Amazon Payments UK Limited
"Commercial, Corporate & landlord Services",Property Services & Facilities Management,Resources,Programmed Maintenance,Premises,"Repairs, Alterations & Maintenance of Buildings",Premises Repairs And Maintenance,,25/08/2023,06/10/2023,466.69,,EFS Systems (UK) Ltd
"Commercial, Corporate & landlord Services",Property Services & Facilities Management,Resources,Programmed Maintenance,Premises,"Repairs, Alterations & Maintenance of Buildings",Premises Repairs And Maintenance,,25/08/2023,06/10/2023,269.38,,EFS Systems (UK) Ltd
"Commercial, Corporate & landlord Services",Property Services & Facilities Management,Resources,Programmed Maintenance,Premises,"Repairs, Alterations & Maintenance of Buildings",Premises Repairs And Maintenance,,31/08/2023,06/10/2023,392.38,,EFS Systems (UK) Ltd
Schools Total,School Group 2 � Pupil Capacity 144-314,MCC Schools,Thornwell Primary School,Supplies & Services,Grants and Subscriptions,Subscriptions,,29/09/2023,19/10/2023,244,,Oxford University Press
Schools Total,School Group 1 � Pupil Capacity 1-143,MCC Schools,Llanvihangel Crucorney Primary School,Supplies & Services,Grants and Subscriptions,Subscriptions,,04/10/2023,19/10/2023,200,,International Links
Democratic Services,Democratic Services,People & Governance,Members Costs,Supplies & Services,"Equipment, Furniture and Materials",Civic Events & Activities,,17/10/2023,20/10/2023,50,,Newport City Council
"Enterprise, Housing & Community Animation",General Fund Housing,Communities & Place,Homelessness,Supplies & Services,Services,Homelessness Bed & Breakfast Accomodation,,16/10/2023,26/10/2023,553,,Stepping Stone Newport Ltd
"Commercial, Corporate & landlord Services",Property Services & Facilities Management,Resources,Programmed Maintenance,Premises,"Repairs, Alterations & Maintenance of Buildings",Premises Repairs And Maintenance,,05/10/2023,09/10/2023,82.59,,Lorne Stewart  Plc
Adult Services,Community Care Team,Social Care and Health,Abergavenny Adult Team,Employees,Direct Employee Expenses,Agency Staff,,25/10/2023,31/10/2023,585.79,,Piers Meadows Recruitment Limited
Adult Services,Community Care Team,Social Care and Health,Monmouth Adult Team,Employees,Direct Employee Expenses,Agency Staff,,25/10/2023,31/10/2023,990.66,,Piers Meadows Recruitment Limited
Adult Services,INTEGRATED CARE FUND,Social Care and Health,Intermediate Care Fund,Employees,Direct Employee Expenses,Agency Staff,,25/10/2023,31/10/2023,813.83,,Piers Meadows Recruitment Limited
Schools Total,School Group 7 � Pupil Capacity 501-1800,MCC Schools,King Henry 3-19 School,Employees,Indirect Employee Expenses,Replacement,,27/09/2023,09/10/2023,490.96,,Teaching Personnel
"Leisure, Youth & Outdoor Adventure",Leisure Services,MonLife Directorate,Caldicot Leisure Centre,Supplies & Services,Communications and Computing,Licences,,25/10/2023,30/10/2023,85,,Ofcom
"Enterprise, Housing & Community Animation",General Fund Housing,Communities & Place,Homelessness,Supplies & Services,Services,Homelessness Bed & Breakfast Accomodation,,24/10/2023,30/10/2023,291.69,,Raglan Lodge
Adult Services,Direct Care Residential,Social Care and Health,Severn View Residential,Employees,Direct Employee Expenses,Agency Staff,,18/10/2023,24/10/2023,173.9,,Support Ethics Ltd
Adult Services,Direct Care Residential,Social Care and Health,Severn View Residential,Employees,Direct Employee Expenses,Agency Staff,,18/10/2023,24/10/2023,164.5,,Support Ethics Ltd
Adult Services,Direct Care Residential,Social Care and Health,Severn View Residential,Employees,Direct Employee Expenses,Agency Staff,,18/10/2023,24/10/2023,347.8,,Support Ethics Ltd
Adult Services,Direct Care Residential,Social Care and Health,Severn View Residential,Employees,Direct Employee Expenses,Agency Staff,,18/10/2023,24/10/2023,319.7,,Support Ethics Ltd
Adult Services,Direct Care Residential,Social Care and Health,Severn View Residential,Employees,Direct Employee Expenses,Agency Staff,,18/10/2023,24/10/2023,510.85,,Support Ethics Ltd
Finance & Business Devlopment,Museums,MonLife Directorate,Museums General,Supplies & Services,Grants and Subscriptions,Subscriptions,,16/10/2023,24/10/2023,638.12,,Museums Association
Finance & Business Devlopment,Museums,MonLife Directorate,Museums General,Supplies & Services,Grants and Subscriptions,Subscriptions,,16/10/2023,24/10/2023,139.42,,Museums Association
Finance & Business Devlopment,Museums,MonLife Directorate,Museums General,Supplies & Services,Grants and Subscriptions,Subscriptions,,16/10/2023,24/10/2023,-139.42,,Museums Association
People,People Services,People & Governance,Payroll & System Support,Supplies & Services,Communications and Computing,Software Maintenance,,17/10/2023,24/10/2023,886.15,,Zellis UK Limited
Adult Services,Direct Care Residential,Social Care and Health,Severn View Residential,Employees,Direct Employee Expenses,Agency Staff,,18/10/2023,24/10/2023,365.78,,Support Ethics Ltd
Adult Services,Direct Care Residential,Social Care and Health,Severn View Residential,Employees,Direct Employee Expenses,Agency Staff,,18/10/2023,24/10/2023,442,,Support Ethics Ltd
"Leisure, Youth & Outdoor Adventure",Leisure Services,MonLife Directorate,Monmouth Leisure Centre,Supplies & Services,Catering,Catering,,16/10/2023,18/10/2023,-2.08,,Castell Howell Foods Ltd
"Leisure, Youth & Outdoor Adventure",Leisure Services,MonLife Directorate,Monmouth Leisure Centre,Supplies & Services,Catering,Catering,,16/10/2023,18/10/2023,-7.85,,Castell Howell Foods Ltd
Capital Division,Capital Dept,Capital,Capital Programme,Supplies & Services,Communications and Computing,IT Hardware,,18/10/2023,24/10/2023,42326.72,,SRS Public
"Placemaking, Highways & Flooding",Highways Dev & Car Parks,Communities & Place,Traffic & Road Safety,Supplies & Services,"Equipment, Furniture and Materials",Advertising,,20/10/2023,24/10/2023,420,,Tindle Newspapers Wales & The Borders Ltd
"Commercial, Corporate & landlord Services",Property Services & Facilities Management,Resources,Programmed Maintenance,Premises,"Repairs, Alterations & Maintenance of Buildings",Premises Repairs And Maintenance,,17/10/2023,24/10/2023,300,,D and C Utilities LTD
"Commercial, Corporate & landlord Services",Property Services & Facilities Management,Resources,Magor Accommodation,Premises,"Repairs, Alterations & Maintenance of Buildings",Premises Repairs And Maintenance,,17/10/2023,24/10/2023,150,,D and C Utilities LTD
Finance & Business Devlopment,Marketing & Sales,MonLife Directorate,Sales & Marketing,Supplies & Services,"Equipment, Furniture and Materials",Marketing Materials,,19/10/2023,23/10/2023,190,,Zenith Print and Packaging Ltd
"Commercial, Corporate & landlord Services",Property Services & Facilities Management,Resources,Programmed Maintenance,Premises,"Repairs, Alterations & Maintenance of Buildings",Premises Repairs And Maintenance,,18/08/2023,26/10/2023,140,,Fire Safety Direct
"Commercial, Corporate & landlord Services",Property Services & Facilities Management,Resources,Programmed Maintenance,Premises,"Repairs, Alterations & Maintenance of Buildings",Premises Repairs And Maintenance,,01/08/2023,26/10/2023,140,,Fire Safety Direct
Schools Total,School Group 7 � Pupil Capacity 501-1800,MCC Schools,King Henry 3-19 School,Employees,Indirect Employee Expenses,Replacement,,05/10/2023,23/10/2023,140.01,,Prospero Teaching
Schools Total,School Group 7 � Pupil Capacity 501-1800,MCC Schools,King Henry 3-19 School,Employees,Indirect Employee Expenses,Replacement,,05/10/2023,23/10/2023,107.01,,Prospero Teaching
Schools Total,School Group 7 � Pupil Capacity 501-1800,MCC Schools,King Henry 3-19 School,Employees,Indirect Employee Expenses,Replacement,,20/09/2023,23/10/2023,1080,,Suppleo Recruitment Ltd
"Enterprise, Housing & Community Animation",General Fund Housing,Communities & Place,Homelessness,Supplies & Services,Services,Homelessness Bed & Breakfast Accomodation,,16/10/2023,30/10/2023,291.69,,Raglan Lodge
Adult Services,Community Care Team,Social Care and Health,Mental Health Care Team,Employees,Direct Employee Expenses,Agency Staff,,04/10/2023,09/10/2023,1262.55,,Liquid Personnel
Schools Total,School Group 7 � Pupil Capacity 501-1800,MCC Schools,King Henry 3-19 School,Employees,Indirect Employee Expenses,Replacement,,28/09/2023,09/10/2023,863.85,,Hays Specialist Recruitment Ltd
Schools Total,School Group 7 � Pupil Capacity 501-1800,MCC Schools,King Henry 3-19 School,Employees,Indirect Employee Expenses,Replacement,,27/09/2023,09/10/2023,728.2,,Axcis Education Recruitment
Adult Services,Direct Care Residential,Social Care and Health,Severn View Residential,Employees,Direct Employee Expenses,Agency Staff,,04/10/2023,12/10/2023,412.44,,Support Ethics Ltd
Adult Services,Direct Care Residential,Social Care and Health,Severn View Residential,Employees,Direct Employee Expenses,Agency Staff,,04/10/2023,12/10/2023,305.5,,Support Ethics Ltd
Adult Services,Direct Care Residential,Social Care and Health,Severn View Residential,Employees,Direct Employee Expenses,Agency Staff,,04/10/2023,12/10/2023,432.4,,Support Ethics Ltd
Adult Services,Direct Care Residential,Social Care and Health,Severn View Residential,Employees,Direct Employee Expenses,Agency Staff,,04/10/2023,12/10/2023,159.9,,Support Ethics Ltd
Adult Services,Direct Care Residential,Social Care and Health,Severn View Residential,Employees,Direct Employee Expenses,Agency Staff,,04/10/2023,12/10/2023,159.9,,Support Ethics Ltd
Adult Services,Direct Care Residential,Social Care and Health,Severn View Residential,Employees,Direct Employee Expenses,Agency Staff,,04/10/2023,12/10/2023,329,,Support Ethics Ltd
Adult Services,Direct Care Residential,Social Care and Health,Severn View Residential,Employees,Direct Employee Expenses,Agency Staff,,04/10/2023,12/10/2023,141,,Support Ethics Ltd
"Enterprise, Housing & Community Animation",General Fund Housing,Communities & Place,Homelessness,Supplies & Services,Services,Homelessness Bed & Breakfast Accomodation,,24/10/2023,30/10/2023,291.69,,Raglan Lodge
"Enterprise, Housing & Community Animation",General Fund Housing,Communities & Place,Homelessness,Supplies & Services,Services,Homelessness Bed & Breakfast Accomodation,,24/10/2023,30/10/2023,291.69,,Raglan Lodge
Adult Services,Direct Care Residential,Social Care and Health,Severn View Residential,Employees,Direct Employee Expenses,Agency Staff,,20/09/2023,12/10/2023,404.2,,Support Ethics Ltd
Schools Total,School Group 7 � Pupil Capacity 501-1800,MCC Schools,King Henry 3-19 School,Employees,Indirect Employee Expenses,Replacement,,27/09/2023,09/10/2023,127.35,,Suppleo Recruitment Ltd
Schools Total,School Group 7 � Pupil Capacity 501-1800,MCC Schools,King Henry 3-19 School,Employees,Indirect Employee Expenses,Replacement,,27/09/2023,09/10/2023,127.35,,Suppleo Recruitment Ltd
Schools Total,School Group 7 � Pupil Capacity 501-1800,MCC Schools,King Henry 3-19 School,Employees,Indirect Employee Expenses,Replacement,,27/09/2023,09/10/2023,1080,,Suppleo Recruitment Ltd
Schools Total,School Group 7 � Pupil Capacity 501-1800,MCC Schools,King Henry 3-19 School,Employees,Indirect Employee Expenses,Replacement,,28/09/2023,09/10/2023,140,,Prospero Teaching
Schools Total,School Group 7 � Pupil Capacity 501-1800,MCC Schools,King Henry 3-19 School,Employees,Indirect Employee Expenses,Replacement,,28/09/2023,09/10/2023,479.97,,Prospero Teaching
Schools Total,School Group 7 � Pupil Capacity 501-1800,MCC Schools,King Henry 3-19 School,Employees,Indirect Employee Expenses,Replacement,,28/09/2023,09/10/2023,261.38,,Prospero Teaching
Schools Total,School Group 7 � Pupil Capacity 501-1800,MCC Schools,King Henry 3-19 School,Employees,Indirect Employee Expenses,Replacement,,28/09/2023,09/10/2023,140,,Prospero Teaching
Schools Total,School Group 7 � Pupil Capacity 501-1800,MCC Schools,King Henry 3-19 School,Employees,Indirect Employee Expenses,Replacement,,27/09/2023,09/10/2023,245.48,,Teaching Personnel
Schools Total,School Group 7 � Pupil Capacity 501-1800,MCC Schools,King Henry 3-19 School,Employees,Indirect Employee Expenses,Replacement,,27/09/2023,09/10/2023,156.86,,Teaching Personnel
Schools Total,School Group 7 � Pupil Capacity 501-1800,MCC Schools,King Henry 3-19 School,Employees,Indirect Employee Expenses,Replacement,,20/09/2023,09/10/2023,245.48,,Teaching Personnel
Schools Total,School Group 7 � Pupil Capacity 501-1800,MCC Schools,King Henry 3-19 School,Employees,Indirect Employee Expenses,Replacement,,20/09/2023,09/10/2023,613.7,,Teaching Personnel
Schools Total,School Group 7 � Pupil Capacity 501-1800,MCC Schools,King Henry 3-19 School,Employees,Indirect Employee Expenses,Replacement,,26/09/2023,09/10/2023,264.78,,TeacherActive
Schools Total,School Group 7 � Pupil Capacity 501-1800,MCC Schools,King Henry 3-19 School,Employees,Indirect Employee Expenses,Replacement,,19/09/2023,09/10/2023,1323.9,,TeacherActive
Schools Total,School Group 7 � Pupil Capacity 501-1800,MCC Schools,King Henry 3-19 School,Employees,Indirect Employee Expenses,Replacement,,27/09/2023,09/10/2023,208,,Back Office Support Services Ltd (Education Supply Pool)
"Leisure, Youth & Outdoor Adventure",Leisure Services,MonLife Directorate,Monmouth Leisure Centre,Supplies & Services,Catering,Catering,,26/10/2023,31/10/2023,100.53,,Castell Howell Foods Ltd
"Leisure, Youth & Outdoor Adventure",Leisure Services,MonLife Directorate,Monmouth Leisure Centre,Supplies & Services,Catering,Catering,,26/10/2023,31/10/2023,-100.53,,Castell Howell Foods Ltd
"Leisure, Youth & Outdoor Adventure",Leisure Services,MonLife Directorate,Monmouth Leisure Centre,Supplies & Services,Catering,Catering,,26/10/2023,31/10/2023,370.38,,Castell Howell Foods Ltd
"Commercial, Corporate & landlord Services",Property Services & Facilities Management,Resources,Magor Accommodation,Premises,"Repairs, Alterations & Maintenance of Buildings",Premises Repairs And Maintenance,,23/10/2023,31/10/2023,278.73,,Kone Plc
Schools Total,School Group 7 � Pupil Capacity 501-1800,MCC Schools,Chepstow School,Supplies & Services,Communications and Computing,IT Hardware,,11/10/2023,19/10/2023,4.91,,Amazon Payments UK Limited
Children Services,Children Services Teams,Social Care and Health,Youth Offending Team,Supplies & Services,Communications and Computing,Postages,,16/10/2023,19/10/2023,400,,Quadient UK Ltd
"Commercial, Corporate & landlord Services",Property Services & Facilities Management,Resources,Programmed Maintenance,Premises,"Repairs, Alterations & Maintenance of Buildings",Premises Repairs And Maintenance,,25/08/2023,06/10/2023,318.06,,EFS Systems (UK) Ltd
"Commercial, Corporate & landlord Services",Property Services & Facilities Management,Resources,Programmed Maintenance,Premises,"Repairs, Alterations & Maintenance of Buildings",Premises Repairs And Maintenance,,25/08/2023,06/10/2023,626.2,,EFS Systems (UK) Ltd
Children Services,Children Services Teams,Social Care and Health,Early Help and Assessment Team,Employees,Direct Employee Expenses,Agency Staff,,20/09/2023,06/10/2023,1576.75,,Liquid Personnel
Children Services,Children Services Teams,Social Care and Health,Early Help and Assessment Team,Employees,Direct Employee Expenses,Agency Staff,,19/09/2023,06/10/2023,1646.5,,Leaders In Care
Children Services,Children Services Teams,Social Care and Health,Early Help and Assessment Team,Employees,Direct Employee Expenses,Agency Staff,,14/08/2023,06/10/2023,1008.2,,Leaders In Care
Children Services,Children Services Teams,Social Care and Health,Early Help and Assessment Team,Employees,Direct Employee Expenses,Agency Staff,,11/09/2023,06/10/2023,1665.04,,Leaders In Care
"Placemaking, Highways & Flooding",Highways Dev & Car Parks,Communities & Place,Transport Policy,Supplies & Services,Communications and Computing,Postages,,01/09/2023,06/10/2023,9.95,,Keltic
Children Services,Children Services Teams,Social Care and Health,Early Help and Assessment Team,Employees,Direct Employee Expenses,Agency Staff,,31/08/2023,06/10/2023,1507,,Liquid Personnel
Children Services,Children Services Teams,Social Care and Health,Early Help and Assessment Team,Employees,Direct Employee Expenses,Agency Staff,,25/09/2023,06/10/2023,1009.8,,Leaders In Care
Children Services,Children Services Teams,Social Care and Health,Early Help and Assessment Team,Employees,Direct Employee Expenses,Agency Staff,,27/09/2023,06/10/2023,1577.65,,Liquid Personnel
Schools Total,SCHGRP3 � School Group 3 � Pupil Capacity 315-500,MCC Schools,Deri View Primary School,Premises,Ground Maintenance Costs,Grounds Maintenance - Direct.,,25/09/2023,06/10/2023,436.66,,Morris's Grounds Maintenance Ltd
Schools Total,SCHGRP3 � School Group 3 � Pupil Capacity 315-500,MCC Schools,Overmonnow Primary School,Premises,"Repairs, Alterations & Maintenance of Buildings",Security Maintenance.,,01/10/2023,06/10/2023,455.91,,G4S Secure Solutions (UK) Ltd
Schools Total,School Group 2 � Pupil Capacity 144-314,MCC Schools,Ysgol Gymraeg Y Fenni,Supplies & Services,Communications and Computing,IT Hardware,,04/10/2023,06/10/2023,160.74,,SRS Public
Schools Total,School Group 7 � Pupil Capacity 501-1800,MCC Schools,Chepstow School,Supplies & Services,Communications and Computing,IT Hardware,,02/10/2023,06/10/2023,21.24,,Amazon Payments UK Limited
